Workbook

Sheet 조치전검사
A1: 입력행 | D1: =COUNTA(조치전검사!A:A)-2 -> 1 | F1: =TODAY() -> 2016-01-05 | J1: =NOW() -> 42374.85733
A3: 공정중 불량유형 분석 및 조치 사항
A4: 검사일자 | B4: 검사시간 | C4: 제품번호 | D4: 품명 | E4: 생산설비 | F4: 작업자 | G4: 기계수량 | H4: 생산수량 | I4: 생산오차 | J4: 검사수량 | K4: 기능성불량 | Q4: 위생불량 | T4: 기타 | U4: 조치자 | V4: 조치확인 (조치자작성) | W4: 조치자확인 | X4: QC확인
K5: 흑점 | L5: 버 | M5: 게이트버 | N5: 크렉외 | O5: 웰더 | P5: 미성형 | Q5: 기름 | R5: 이물 | S5: 오염 | T5: 투입이상
D228: =IFERROR(VLOOKUP(C228,조건기초!E474:F499,2),"") -> 
D229: =IFERROR(VLOOKUP(C229,조건기초!E475:F500,2),"") -> 
D230: =IFERROR(VLOOKUP(C230,조건기초!E476:F501,2),"") -> 
D231: =IFERROR(VLOOKUP(C231,조건기초!E477:F502,2),"") -> 
D232: =IFERROR(VLOOKUP(C232,조건기초!E478:F503,2),"") -> 
D233: =IFERROR(VLOOKUP(C233,조건기초!E479:F504,2),"") -> 
D234: =IFERROR(VLOOKUP(C234,조건기초!E480:F505,2),"") -> 
D235: =IFERROR(VLOOKUP(C235,조건기초!E481:F506,2),"") -> 
D236: =IFERROR(VLOOKUP(C236,조건기초!E482:F507,2),"") -> 
D237: =IFERROR(VLOOKUP(C237,조건기초!E483:F508,2),"") -> 
D238: =IFERROR(VLOOKUP(C238,조건기초!E484:F509,2),"") -> 
D239: =IFERROR(VLOOKUP(C239,조건기초!E485:F510,2),"") -> 
D240: =IFERROR(VLOOKUP(C240,조건기초!E486:F511,2),"") -> 
D241: =IFERROR(VLOOKUP(C241,조건기초!E487:F512,2),"") -> 
D242: =IFERROR(VLOOKUP(C242,조건기초!E488:F513,2),"") -> 
D243: =IFERROR(VLOOKUP(C243,조건기초!E489:F514,2),"") -> 
D244: =IFERROR(VLOOKUP(C244,조건기초!E490:F515,2),"") -> 
D245: =IFERROR(VLOOKUP(C245,조건기초!E491:F516,2),"") -> 
D246: =IFERROR(VLOOKUP(C246,조건기초!E492:F517,2),"") -> 
D247: =IFERROR(VLOOKUP(C247,조건기초!E493:F518,2),"") -> 
D248: =IFERROR(VLOOKUP(C248,조건기초!E494:F519,2),"") -> 
D249: =IFERROR(VLOOKUP(C249,조건기초!E495:F520,2),"") -> 
D250: =IFERROR(VLOOKUP(C250,조건기초!E496:F521,2),"") -> 
D251: =IFERROR(VLOOKUP(C251,조건기초!E497:F522,2),"") -> 
D252: =IFERROR(VLOOKUP(C252,조건기초!E498:F523,2),"") -> 
D253: =IFERROR(VLOOKUP(C253,조건기초!E499:F524,2),"") -> 
D254: =IFERROR(VLOOKUP(C254,조건기초!E500:F525,2),"") -> 
D255: =IFERROR(VLOOKUP(C255,조건기초!E501:F526,2),"") -> 
D256: =IFERROR(VLOOKUP(C256,조건기초!E502:F527,2),"") -> 
D257: =IFERROR(VLOOKUP(C257,조건기초!E503:F528,2),"") -> 
D258: =IFERROR(VLOOKUP(C258,조건기초!E504:F529,2),"") -> 
D259: =IFERROR(VLOOKUP(C259,조건기초!E505:F530,2),"") -> 
D260: =IFERROR(VLOOKUP(C260,조건기초!E506:F531,2),"") -> 
D261: =IFERROR(VLOOKUP(C261,조건기초!E507:F532,2),"") -> 
D262: =IFERROR(VLOOKUP(C262,조건기초!E508:F533,2),"") -> 
D263: =IFERROR(VLOOKUP(C263,조건기초!E509:F534,2),"") -> 
D264: =IFERROR(VLOOKUP(C264,조건기초!E510:F535,2),"") -> 

Sheet 일보고서
B2: 검사일자 | C2: 2014-12-22
C3: =YEAR(C2) -> 2014 | D3: =MONTH(C2) -> 12 | F3: =DAY(C2) -> 22
B5: 공정중 불량유형 분석 보고서 | O5: 작 성 | Q5: 검 토 | S5: 승 인
B9: ="검사일자 : "&C3&"년"&D3&"월"&F3&"일" -> 검사일자 : 2014년12월22일
B11: ="√ 금일 총 "&COUNTA($C$22:$D$40)&"제품 생산. " -> √ 금일 총 1제품 생산.
B12: ="√ 불량 제품 총 "&J42&"개 검사. " -> √ 불량 제품 총 0개 검사.
B13: ="√ 불량이 가장 많은 유형은 "&INDEX(K21:T21,MATCH(MAX(K42:T42),K42:T42,0))&" 불량. ("&INDEX(K42:T42,MATCH(MAX(K42:T42),K42:T42,0))&"개)" -> √ 불량이 가장 많은 유형은 흑점 불량. (0개)
B14: ="√ 불량이 가장 적은 유형은 "&INDEX(K21:T21,MATCH(MIN(K42:T42),K42:T42,0))&" 불량. ("&INDEX(K42:T42,MATCH(MIN(K42:T42),K42:T42,0))&"개)" -> √ 불량이 가장 적은 유형은 흑점 불량. (0개)
B15: √ 금일 이슈 사항 ①닥터유 민트용기 하 안료 배합상태 불량으로 인한 "색상불량"발생.
B19: ☞ | C19: 검사 상세 | Q19: *찍힘외 = 홀,크렉,스크레치,찍힘 포함
B20: 제품번호 | C20: 품명 | E20: 기계수량 | F20: 정품수량 | G20: 재고수량 | H20: 불량수량 | I20: 오차 | J20: 검사수량 | K20: 기능성불량 | Q20: 위생불량 | T20: 기타
E21: 수량 | H21: 불량률(%) | K21: 흑점 | L21: 버 | M21: 게이트버 | N21: 찍힘외 | O21: 웰더 | P21: 미성형 | Q21: 기름 | R21: 이물 | S21: 오염 | T21: 기타
B22: =IFERROR(VLOOKUP(C22,조건기초!$F$5:$AR$34,39,0),"") ->  | C22: 알파메스틱 용기 | E22: =SUMIFS(조치전검사!$G:$G,조치전검사!$D:$D,일보고서!$C22,조치전검사!$A:$A,일보고서!$C$2) -> 0 | F22: =SUMIFS(조치전검사!$H:$H,조치전검사!$D:$D,일보고서!$C22,조치전검사!$A:$A,일보고서!$C$2) -> 0 | G22: 0 | H22: =IFERROR(IF(E22-F22+G22=0,"",E22-F22+G22),"") ->  | I22: =IFERROR(H22-J22,"") ->  | J22: =SUMIFS(조치전검사!J:J,조치전검사!$A:$A,일보고서!$C$2,조치전검사!$D:$D,일보고서!$C22) -> 0 | K22: =SUMIFS(조치전검사!K:K,조치전검사!$A:$A,일보고서!$C$2,조치전검사!$D:$D,일보고서!$C22) -> 0 | L22: =SUMIFS(조치전검사!L:L,조치전검사!$A:$A,일보고서!$C$2,조치전검사!$D:$D,일보고서!$C22) -> 0 | M22: =SUMIFS(조치전검사!M:M,조치전검사!$A:$A,일보고서!$C$2,조치전검사!$D:$D,일보고서!$C22) -> 0 | N22: =SUMIFS(조치전검사!N:N,조치전검사!$A:$A,일보고서!$C$2,조치전검사!$D:$D,일보고서!$C22) -> 0 | O22: =SUMIFS(조치전검사!O:O,조치전검사!$A:$A,일보고서!$C$2,조치전검사!$D:$D,일보고서!$C22) -> 0 | P22: =SUMIFS(조치전검사!P:P,조치전검사!$A:$A,일보고서!$C$2,조치전검사!$D:$D,일보고서!$C22) -> 0 | Q22: =SUMIFS(조치전검사!Q:Q,조치전검사!$A:$A,일보고서!$C$2,조치전검사!$D:$D,일보고서!$C22) -> 0 | R22: =SUMIFS(조치전검사!R:R,조치전검사!$A:$A,일보고서!$C$2,조치전검사!$D:$D,일보고서!$C22) -> 0 | S22: =SUMIFS(조치전검사!S:S,조치전검사!$A:$A,일보고서!$C$2,조치전검사!$D:$D,일보고서!$C22) -> 0 | T22: =SUMIFS(조치전검사!T:T,조치전검사!$A:$A,일보고서!$C$2,조치전검사!$D:$D,일보고서!$C22) -> 0
H23: =IFERROR(H22/(E22),"0%") -> 0% | J23: =IFERROR(J22/(E22),0%) -> 0 | K23: =IFERROR((K22/$J22),"") ->  | L23: =IFERROR((L22/$J22),"") -> 
B24: =IFERROR(VLOOKUP(C24,조건기초!$F$5:$AR$34,39,0),"") ->  | E24: =SUMIFS(조치전검사!$G:$G,조치전검사!$D:$D,일보고서!$C24,조치전검사!$A:$A,일보고서!$C$2) -> 0 | F24: =SUMIFS(조치전검사!$H:$H,조치전검사!$D:$D,일보고서!$C24,조치전검사!$A:$A,일보고서!$C$2) -> 0 | H24: =IFERROR(IF(E24-F24+G24=0,"",E24-F24+G24),"") ->  | I24: =IFERROR(H24-J24,"") ->  | J24: =SUMIFS(조치전검사!J:J,조치전검사!$A:$A,일보고서!$C$2,조치전검사!$D:$D,일보고서!$C24) -> 0 | K24: =SUMIFS(조치전검사!K:K,조치전검사!$A:$A,일보고서!$C$2,조치전검사!$D:$D,일보고서!$C24) -> 0 | L24: =SUMIFS(조치전검사!L:L,조치전검사!$A:$A,일보고서!$C$2,조치전검사!$D:$D,일보고서!$C24) -> 0 | M24: =SUMIFS(조치전검사!M:M,조치전검사!$A:$A,일보고서!$C$2,조치전검사!$D:$D,일보고서!$C24) -> 0 | N24: =SUMIFS(조치전검사!N:N,조치전검사!$A:$A,일보고서!$C$2,조치전검사!$D:$D,일보고서!$C24) -> 0 | O24: =SUMIFS(조치전검사!O:O,조치전검사!$A:$A,일보고서!$C$2,조치전검사!$D:$D,일보고서!$C24) -> 0 | P24: =SUMIFS(조치전검사!P:P,조치전검사!$A:$A,일보고서!$C$2,조치전검사!$D:$D,일보고서!$C24) -> 0 | Q24: =SUMIFS(조치전검사!Q:Q,조치전검사!$A:$A,일보고서!$C$2,조치전검사!$D:$D,일보고서!$C24) -> 0 | R24: =SUMIFS(조치전검사!R:R,조치전검사!$A:$A,일보고서!$C$2,조치전검사!$D:$D,일보고서!$C24) -> 0 | S24: =SUMIFS(조치전검사!S:S,조치전검사!$A:$A,일보고서!$C$2,조치전검사!$D:$D,일보고서!$C24) -> 0 | T24: =SUMIFS(조치전검사!T:T,조치전검사!$A:$A,일보고서!$C$2,조치전검사!$D:$D,일보고서!$C24) -> 0
H25: =IFERROR(H24/(E24),"0%") -> 0% | J25: =IFERROR(J24/(E24),0%) -> 0 | K25: =IFERROR((K24/$J24),"") ->  | L25: =IFERROR((L24/$J24),"") ->  | M25: =IFERROR((M24/$J24),"") ->  | N25: =IFERROR((N24/$J24),"") ->  | O25: =IFERROR((O24/$J24),"") ->  | P25: =IFERROR((P24/$J24),"") ->  | Q25: =IFERROR((Q24/$J24),"") ->  | R25: =IFERROR((R24/$J24),"") ->  | S25: =IFERROR((S24/$J24),"") ->  | T25: =IFERROR((T24/$J24),"") -> 
B26: =IFERROR(VLOOKUP(C26,조건기초!$F$5:$AR$34,39,0),"") ->  | E26: =SUMIFS(조치전검사!$G:$G,조치전검사!$D:$D,일보고서!$C26,조치전검사!$A:$A,일보고서!$C$2) -> 0 | F26: =SUMIFS(조치전검사!$H:$H,조치전검사!$D:$D,일보고서!$C26,조치전검사!$A:$A,일보고서!$C$2) -> 0 | G26: 0 | H26: =IFERROR(IF(E26-F26+G26=0,"",E26-F26+G26),"") ->  | I26: =IFERROR(H26-J26,"") ->  | J26: =SUMIFS(조치전검사!J:J,조치전검사!$A:$A,일보고서!$C$2,조치전검사!$D:$D,일보고서!$C26) -> 0 | K26: =SUMIFS(조치전검사!K:K,조치전검사!$A:$A,일보고서!$C$2,조치전검사!$D:$D,일보고서!$C26) -> 0 | L26: =SUMIFS(조치전검사!L:L,조치전검사!$A:$A,일보고서!$C$2,조치전검사!$D:$D,일보고서!$C26) -> 0 | M26: =SUMIFS(조치전검사!M:M,조치전검사!$A:$A,일보고서!$C$2,조치전검사!$D:$D,일보고서!$C26) -> 0 | N26: =SUMIFS(조치전검사!N:N,조치전검사!$A:$A,일보고서!$C$2,조치전검사!$D:$D,일보고서!$C26) -> 0 | O26: =SUMIFS(조치전검사!O:O,조치전검사!$A:$A,일보고서!$C$2,조치전검사!$D:$D,일보고서!$C26) -> 0 | P26: =SUMIFS(조치전검사!P:P,조치전검사!$A:$A,일보고서!$C$2,조치전검사!$D:$D,일보고서!$C26) -> 0 | Q26: =SUMIFS(조치전검사!Q:Q,조치전검사!$A:$A,일보고서!$C$2,조치전검사!$D:$D,일보고서!$C26) -> 0 | R26: =SUMIFS(조치전검사!R:R,조치전검사!$A:$A,일보고서!$C$2,조치전검사!$D:$D,일보고서!$C26) -> 0 | S26: =SUMIFS(조치전검사!S:S,조치전검사!$A:$A,일보고서!$C$2,조치전검사!$D:$D,일보고서!$C26) -> 0 | T26: =SUMIFS(조치전검사!T:T,조치전검사!$A:$A,일보고서!$C$2,조치전검사!$D:$D,일보고서!$C26) -> 0
H27: =IFERROR(H26/(E26),"0%") -> 0% | J27: =IFERROR(J26/(E26),0%) -> 0 | K27: =IFERROR((K26/$J26),"") ->  | L27: =IFERROR((L26/$J26),"") ->  | M27: =IFERROR((M26/$J26),"") ->  | N27: =IFERROR((N26/$J26),"") ->  | O27: =IFERROR((O26/$J26),"") ->  | P27: =IFERROR((P26/$J26),"") ->  | Q27: =IFERROR((Q26/$J26),"") ->  | R27: =IFERROR((R26/$J26),"") ->  | S27: =IFERROR((S26/$J26),"") ->  | T27: =IFERROR((T26/$J26),"") -> 
B28: =IFERROR(VLOOKUP(C28,조건기초!$F$5:$AR$34,39,0),"") ->  | E28: =SUMIFS(조치전검사!$G:$G,조치전검사!$D:$D,일보고서!$C28,조치전검사!$A:$A,일보고서!$C$2) -> 0 | F28: =SUMIFS(조치전검사!$H:$H,조치전검사!$D:$D,일보고서!$C28,조치전검사!$A:$A,일보고서!$C$2) -> 0 | G28: 0 | H28: =IFERROR(IF(E28-F28+G28=0,"",E28-F28+G28),"") ->  | I28: =IFERROR(H28-J28,"") ->  | J28: =SUMIFS(조치전검사!J:J,조치전검사!$A:$A,일보고서!$C$2,조치전검사!$D:$D,일보고서!$C28) -> 0 | K28: =SUMIFS(조치전검사!K:K,조치전검사!$A:$A,일보고서!$C$2,조치전검사!$D:$D,일보고서!$C28) -> 0 | L28: =SUMIFS(조치전검사!L:L,조치전검사!$A:$A,일보고서!$C$2,조치전검사!$D:$D,일보고서!$C28) -> 0 | M28: =SUMIFS(조치전검사!M:M,조치전검사!$A:$A,일보고서!$C$2,조치전검사!$D:$D,일보고서!$C28) -> 0 | N28: =SUMIFS(조치전검사!N:N,조치전검사!$A:$A,일보고서!$C$2,조치전검사!$D:$D,일보고서!$C28) -> 0 | O28: =SUMIFS(조치전검사!O:O,조치전검사!$A:$A,일보고서!$C$2,조치전검사!$D:$D,일보고서!$C28) -> 0 | P28: =SUMIFS(조치전검사!P:P,조치전검사!$A:$A,일보고서!$C$2,조치전검사!$D:$D,일보고서!$C28) -> 0 | Q28: =SUMIFS(조치전검사!Q:Q,조치전검사!$A:$A,일보고서!$C$2,조치전검사!$D:$D,일보고서!$C28) -> 0 | R28: =SUMIFS(조치전검사!R:R,조치전검사!$A:$A,일보고서!$C$2,조치전검사!$D:$D,일보고서!$C28) -> 0 | S28: =SUMIFS(조치전검사!S:S,조치전검사!$A:$A,일보고서!$C$2,조치전검사!$D:$D,일보고서!$C28) -> 0 | T28: =SUMIFS(조치전검사!T:T,조치전검사!$A:$A,일보고서!$C$2,조치전검사!$D:$D,일보고서!$C28) -> 0
H29: =IFERROR(H28/(E28),"0%") -> 0% | J29: =IFERROR(J28/(E28),0%) -> 0 | K29: =IFERROR((K28/$J28),"") ->  | L29: =IFERROR((L28/$J28),"") ->  | M29: =IFERROR((M28/$J28),"") ->  | N29: =IFERROR((N28/$J28),"") ->  | O29: =IFERROR((O28/$J28),"") ->  | P29: =IFERROR((P28/$J28),"") ->  | Q29: =IFERROR((Q28/$J28),"") ->  | R29: =IFERROR((R28/$J28),"") ->  | S29: =IFERROR((S28/$J28),"") ->  | T29: =IFERROR((T28/$J28),"") -> 
B30: =IFERROR(VLOOKUP(C30,조건기초!$F$5:$AR$34,39,0),"") ->  | E30: =SUMIFS(조치전검사!$G:$G,조치전검사!$D:$D,일보고서!$C30,조치전검사!$A:$A,일보고서!$C$2) -> 0 | F30: =SUMIFS(조치전검사!$H:$H,조치전검사!$D:$D,일보고서!$C30,조치전검사!$A:$A,일보고서!$C$2) -> 0 | G30: 0 | H30: =IFERROR(IF(E30-F30+G30=0,"",E30-F30+G30),"") ->  | I30: =IFERROR(H30-J30,"") ->  | J30: =SUMIFS(조치전검사!J:J,조치전검사!$A:$A,일보고서!$C$2,조치전검사!$D:$D,일보고서!$C30) -> 0 | K30: =SUMIFS(조치전검사!K:K,조치전검사!$A:$A,일보고서!$C$2,조치전검사!$D:$D,일보고서!$C$30) -> 0 | L30: =SUMIFS(조치전검사!L:L,조치전검사!$A:$A,일보고서!$C$2,조치전검사!$D:$D,일보고서!$C30) -> 0 | M30: =SUMIFS(조치전검사!M:M,조치전검사!$A:$A,일보고서!$C$2,조치전검사!$D:$D,일보고서!$C30) -> 0 | N30: =SUMIFS(조치전검사!N:N,조치전검사!$A:$A,일보고서!$C$2,조치전검사!$D:$D,일보고서!$C30) -> 0 | O30: =SUMIFS(조치전검사!O:O,조치전검사!$A:$A,일보고서!$C$2,조치전검사!$D:$D,일보고서!$C30) -> 0 | P30: =SUMIFS(조치전검사!P:P,조치전검사!$A:$A,일보고서!$C$2,조치전검사!$D:$D,일보고서!$C30) -> 0 | Q30: =SUMIFS(조치전검사!Q:Q,조치전검사!$A:$A,일보고서!$C$2,조치전검사!$D:$D,일보고서!$C30) -> 0 | R30: =SUMIFS(조치전검사!R:R,조치전검사!$A:$A,일보고서!$C$2,조치전검사!$D:$D,일보고서!$C30) -> 0 | S30: =SUMIFS(조치전검사!S:S,조치전검사!$A:$A,일보고서!$C$2,조치전검사!$D:$D,일보고서!$C30) -> 0 | T30: =SUMIFS(조치전검사!T:T,조치전검사!$A:$A,일보고서!$C$2,조치전검사!$D:$D,일보고서!$C30) -> 0
H31: =IFERROR(H30/(E30),"0%") -> 0% | J31: =IFERROR(J30/(E30),0%) -> 0 | K31: =IFERROR((K30/$J30),"") ->  | L31: =IFERROR((L30/$J30),"") ->  | M31: =IFERROR((M30/$J30),"") ->  | N31: =IFERROR((N30/$J30),"") ->  | O31: =IFERROR((O30/$J30),"") ->  | P31: =IFERROR((P30/$J30),"") ->  | Q31: =IFERROR((Q30/$J30),"") ->  | R31: =IFERROR((R30/$J30),"") ->  | S31: =IFERROR((S30/$J30),"") ->  | T31: =IFERROR((T30/$J30),"") -> 
B32: =IFERROR(VLOOKUP(C32,조건기초!$F$5:$AR$34,39,0),"") ->  | E32: =SUMIFS(조치전검사!$G:$G,조치전검사!$D:$D,일보고서!$C32,조치전검사!$A:$A,일보고서!$C$2) -> 0 | F32: =SUMIFS(조치전검사!$H:$H,조치전검사!$D:$D,일보고서!$C32,조치전검사!$A:$A,일보고서!$C$2) -> 0 | G32: 0 | H32: =IFERROR(IF(E32-F32+G32=0,"",E32-F32+G32),"") ->  | I32: =IFERROR(H32-J32,"") ->  | J32: =SUMIFS(조치전검사!J:J,조치전검사!$A:$A,일보고서!$C$2,조치전검사!$D:$D,일보고서!$C32) -> 0 | K32: =SUMIFS(조치전검사!K:K,조치전검사!$A:$A,일보고서!$C$2,조치전검사!$D:$D,일보고서!$C32) -> 0 | L32: =SUMIFS(조치전검사!L:L,조치전검사!$A:$A,일보고서!$C$2,조치전검사!$D:$D,일보고서!$C32) -> 0 | M32: =SUMIFS(조치전검사!M:M,조치전검사!$A:$A,일보고서!$C$2,조치전검사!$D:$D,일보고서!$C32) -> 0 | N32: =SUMIFS(조치전검사!N:N,조치전검사!$A:$A,일보고서!$C$2,조치전검사!$D:$D,일보고서!$C32) -> 0 | O32: =SUMIFS(조치전검사!O:O,조치전검사!$A:$A,일보고서!$C$2,조치전검사!$D:$D,일보고서!$C32) -> 0 | P32: =SUMIFS(조치전검사!P:P,조치전검사!$A:$A,일보고서!$C$2,조치전검사!$D:$D,일보고서!$C32) -> 0 | Q32: =SUMIFS(조치전검사!Q:Q,조치전검사!$A:$A,일보고서!$C$2,조치전검사!$D:$D,일보고서!$C32) -> 0 | R32: =SUMIFS(조치전검사!R:R,조치전검사!$A:$A,일보고서!$C$2,조치전검사!$D:$D,일보고서!$C32) -> 0 | S32: =SUMIFS(조치전검사!S:S,조치전검사!$A:$A,일보고서!$C$2,조치전검사!$D:$D,일보고서!$C32) -> 0 | T32: =SUMIFS(조치전검사!T:T,조치전검사!$A:$A,일보고서!$C$2,조치전검사!$D:$D,일보고서!$C32) -> 0
H33: =IFERROR(H32/(E32),"0%") -> 0% | J33: =IFERROR(J32/(E32),0%) -> 0 | K33: =IFERROR((K32/$J32),"") ->  | L33: =IFERROR((L32/$J32),"") ->  | M33: =IFERROR((M32/$J32),"") ->  | N33: =IFERROR((N32/$J32),"") ->  | O33: =IFERROR((O32/$J32),"") ->  | P33: =IFERROR((P32/$J32),"") ->  | Q33: =IFERROR((Q32/$J32),"") ->  | R33: =IFERROR((R32/$J32),"") ->  | S33: =IFERROR((S32/$J32),"") ->  | T33: =IFERROR((T32/$J32),"") -> 
B34: =IFERROR(VLOOKUP(C34,조건기초!$F$5:$AR$34,39,0),"") ->  | E34: =SUMIFS(조치전검사!$G:$G,조치전검사!$D:$D,일보고서!$C34,조치전검사!$A:$A,일보고서!$C$2) -> 0 | F34: =SUMIFS(조치전검사!$H:$H,조치전검사!$D:$D,일보고서!$C34,조치전검사!$A:$A,일보고서!$C$2) -> 0 | H34: =IFERROR(IF(E34-F34+G34=0,"",E34-F34+G34),"") ->  | I34: =IFERROR(H34-J34,"") ->  | J34: =SUMIFS(조치전검사!J:J,조치전검사!$A:$A,일보고서!$C$2,조치전검사!$D:$D,일보고서!$C34) -> 0 | K34: =SUMIFS(조치전검사!K:K,조치전검사!$A:$A,일보고서!$C$2,조치전검사!$D:$D,일보고서!$C34) -> 0 | L34: =SUMIFS(조치전검사!L:L,조치전검사!$A:$A,일보고서!$C$2,조치전검사!$D:$D,일보고서!$C34) -> 0 | M34: =SUMIFS(조치전검사!M:M,조치전검사!$A:$A,일보고서!$C$2,조치전검사!$D:$D,일보고서!$C34) -> 0 | N34: =SUMIFS(조치전검사!N:N,조치전검사!$A:$A,일보고서!$C$2,조치전검사!$D:$D,일보고서!$C34) -> 0 | O34: =SUMIFS(조치전검사!O:O,조치전검사!$A:$A,일보고서!$C$2,조치전검사!$D:$D,일보고서!$C34) -> 0 | P34: =SUMIFS(조치전검사!P:P,조치전검사!$A:$A,일보고서!$C$2,조치전검사!$D:$D,일보고서!$C34) -> 0 | Q34: =SUMIFS(조치전검사!Q:Q,조치전검사!$A:$A,일보고서!$C$2,조치전검사!$D:$D,일보고서!$C34) -> 0 | R34: =SUMIFS(조치전검사!R:R,조치전검사!$A:$A,일보고서!$C$2,조치전검사!$D:$D,일보고서!$C34) -> 0 | S34: =SUMIFS(조치전검사!S:S,조치전검사!$A:$A,일보고서!$C$2,조치전검사!$D:$D,일보고서!$C34) -> 0 | T34: =SUMIFS(조치전검사!T:T,조치전검사!$A:$A,일보고서!$C$2,조치전검사!$D:$D,일보고서!$C34) -> 0
H35: =IFERROR(H34/(E34),"0%") -> 0% | J35: =IFERROR(J34/(E34),0%) -> 0 | K35: =IFERROR((K34/$J34),"") ->  | L35: =IFERROR((L34/$J34),"") ->  | M35: =IFERROR((M34/$J34),"") ->  | N35: =IFERROR((N34/$J34),"") ->  | O35: =IFERROR((O34/$J34),"") ->  | P35: =IFERROR((P34/$J34),"") ->  | Q35: =IFERROR((Q34/$J34),"") ->  | R35: =IFERROR((R34/$J34),"") ->  | S35: =IFERROR((S34/$J34),"") ->  | T35: =IFERROR((T34/$J34),"") -> 
B36: =IFERROR(VLOOKUP(C36,조건기초!$F$5:$AR$34,39,0),"") ->  | E36: =SUMIFS(조치전검사!$G:$G,조치전검사!$D:$D,일보고서!$C36,조치전검사!$A:$A,일보고서!$C$2) -> 0 | F36: =SUMIFS(조치전검사!$H:$H,조치전검사!$D:$D,일보고서!$C36,조치전검사!$A:$A,일보고서!$C$2) -> 0 | H36: =IFERROR(IF(E36-F36+G36=0,"",E36-F36+G36),"") ->  | I36: =IFERROR(H36-J36,"") ->  | J36: =SUMIFS(조치전검사!J:J,조치전검사!$A:$A,일보고서!$C$2,조치전검사!$D:$D,일보고서!$C36) -> 0 | K36: =SUMIFS(조치전검사!K:K,조치전검사!$A:$A,일보고서!$C$2,조치전검사!$D:$D,일보고서!$C36) -> 0 | L36: =SUMIFS(조치전검사!L:L,조치전검사!$A:$A,일보고서!$C$2,조치전검사!$D:$D,일보고서!$C36) -> 0 | M36: =SUMIFS(조치전검사!M:M,조치전검사!$A:$A,일보고서!$C$2,조치전검사!$D:$D,일보고서!$C36) -> 0 | N36: =SUMIFS(조치전검사!N:N,조치전검사!$A:$A,일보고서!$C$2,조치전검사!$D:$D,일보고서!$C36) -> 0 | O36: =SUMIFS(조치전검사!O:O,조치전검사!$A:$A,일보고서!$C$2,조치전검사!$D:$D,일보고서!$C36) -> 0 | P36: =SUMIFS(조치전검사!P:P,조치전검사!$A:$A,일보고서!$C$2,조치전검사!$D:$D,일보고서!$C36) -> 0 | Q36: =SUMIFS(조치전검사!Q:Q,조치전검사!$A:$A,일보고서!$C$2,조치전검사!$D:$D,일보고서!$C36) -> 0 | R36: =SUMIFS(조치전검사!R:R,조치전검사!$A:$A,일보고서!$C$2,조치전검사!$D:$D,일보고서!$C36) -> 0 | S36: =SUMIFS(조치전검사!S:S,조치전검사!$A:$A,일보고서!$C$2,조치전검사!$D:$D,일보고서!$C36) -> 0 | T36: =SUMIFS(조치전검사!T:T,조치전검사!$A:$A,일보고서!$C$2,조치전검사!$D:$D,일보고서!$C36) -> 0
H37: =IFERROR(H36/(E36),"0%") -> 0% | J37: =IFERROR(J36/(E36),0%) -> 0 | K37: =IFERROR((K36/$J36),"") -> 
B38: =IFERROR(VLOOKUP(C38,조건기초!$F$5:$AR$34,39,0),"") ->  | E38: =SUMIFS(조치전검사!$G:$G,조치전검사!$D:$D,일보고서!$C38,조치전검사!$A:$A,일보고서!$C$2) -> 0 | F38: =SUMIFS(조치전검사!$H:$H,조치전검사!$D:$D,일보고서!$C38,조치전검사!$A:$A,일보고서!$C$2) -> 0 | H38: =IFERROR(IF(E38-F38+G38=0,"",E38-F38+G38),"") ->  | I38: =IFERROR(H38-J38,"") ->  | J38: =SUMIFS(조치전검사!J:J,조치전검사!$A:$A,일보고서!$C$2,조치전검사!$D:$D,일보고서!$C38) -> 0 | K38: =SUMIFS(조치전검사!K:K,조치전검사!$A:$A,일보고서!$C$2,조치전검사!$D:$D,일보고서!$C38) -> 0 | L38: =SUMIFS(조치전검사!L:L,조치전검사!$A:$A,일보고서!$C$2,조치전검사!$D:$D,일보고서!$C38) -> 0 | M38: =SUMIFS(조치전검사!M:M,조치전검사!$A:$A,일보고서!$C$2,조치전검사!$D:$D,일보고서!$C38) -> 0 | N38: =SUMIFS(조치전검사!N:N,조치전검사!$A:$A,일보고서!$C$2,조치전검사!$D:$D,일보고서!$C38) -> 0 | O38: =SUMIFS(조치전검사!O:O,조치전검사!$A:$A,일보고서!$C$2,조치전검사!$D:$D,일보고서!$C38) -> 0 | P38: =SUMIFS(조치전검사!P:P,조치전검사!$A:$A,일보고서!$C$2,조치전검사!$D:$D,일보고서!$C38) -> 0 | Q38: =SUMIFS(조치전검사!Q:Q,조치전검사!$A:$A,일보고서!$C$2,조치전검사!$D:$D,일보고서!$C38) -> 0 | R38: =SUMIFS(조치전검사!R:R,조치전검사!$A:$A,일보고서!$C$2,조치전검사!$D:$D,일보고서!$C38) -> 0 | S38: =SUMIFS(조치전검사!S:S,조치전검사!$A:$A,일보고서!$C$2,조치전검사!$D:$D,일보고서!$C38) -> 0 | T38: =SUMIFS(조치전검사!T:T,조치전검사!$A:$A,일보고서!$C$2,조치전검사!$D:$D,일보고서!$C38) -> 0
H39: =IFERROR(H38/(E38),"0%") -> 0% | J39: =IFERROR(J38/(E38),0%) -> 0 | K39: =IFERROR((K38/$J38),"") -> 
B40: =IFERROR(VLOOKUP(C40,조건기초!$F$5:$AR$34,39,0),"") ->  | E40: =SUMIFS(조치전검사!$G:$G,조치전검사!$D:$D,일보고서!$C40,조치전검사!$A:$A,일보고서!$C$2) -> 0 | F40: =SUMIFS(조치전검사!$H:$H,조치전검사!$D:$D,일보고서!$C40,조치전검사!$A:$A,일보고서!$C$2) -> 0 | H40: =IFERROR(IF(E40-F40+G40=0,"",E40-F40+G40),"") ->  | J40: =SUMIFS(조치전검사!J:J,조치전검사!$A:$A,일보고서!$C$2,조치전검사!$D:$D,일보고서!$C40) -> 0 | K40: =SUMIFS(조치전검사!K:K,조치전검사!$A:$A,일보고서!$C$2,조치전검사!$D:$D,일보고서!$C40) -> 0 | L40: =SUMIFS(조치전검사!L:L,조치전검사!$A:$A,일보고서!$C$2,조치전검사!$D:$D,일보고서!$C40) -> 0 | M40: =SUMIFS(조치전검사!M:M,조치전검사!$A:$A,일보고서!$C$2,조치전검사!$D:$D,일보고서!$C40) -> 0 | N40: =SUMIFS(조치전검사!N:N,조치전검사!$A:$A,일보고서!$C$2,조치전검사!$D:$D,일보고서!$C40) -> 0 | O40: =SUMIFS(조치전검사!O:O,조치전검사!$A:$A,일보고서!$C$2,조치전검사!$D:$D,일보고서!$C40) -> 0 | P40: =SUMIFS(조치전검사!P:P,조치전검사!$A:$A,일보고서!$C$2,조치전검사!$D:$D,일보고서!$C40) -> 0 | Q40: =SUMIFS(조치전검사!Q:Q,조치전검사!$A:$A,일보고서!$C$2,조치전검사!$D:$D,일보고서!$C40) -> 0 | R40: =SUMIFS(조치전검사!R:R,조치전검사!$A:$A,일보고서!$C$2,조치전검사!$D:$D,일보고서!$C40) -> 0 | S40: =SUMIFS(조치전검사!S:S,조치전검사!$A:$A,일보고서!$C$2,조치전검사!$D:$D,일보고서!$C40) -> 0 | T40: =SUMIFS(조치전검사!T:T,조치전검사!$A:$A,일보고서!$C$2,조치전검사!$D:$D,일보고서!$C40) -> 0
H41: =IFERROR(H40/(E40),"0%") -> 0% | J41: =IFERROR(J40/(E40),0%) -> 0 | K41: =IFERROR((K40/$J40),"") -> 
C42: 합 계 | J42: =SUM(K42:T42) -> 0 | K42: =SUM(K22,K24,K26,K28,K30,K32,K34,K36,K38,K40) -> 0 | L42: =SUM(L22,L24,L26,L28,L30,L32,L34,L36,L38,L40) -> 0 | M42: 0 | N42: 0 | O42: 0 | P42: 0 | Q42: 0 | R42: 0 | S42: 0 | T42: 0
J43: =IFERROR(SUM($K$43:$T$43),"") -> 0 | K43: =IFERROR(K42/$J$42,"") ->  | L43: =IFERROR(L42/$J$42,"") ->  | M43: =IFERROR(M42/$J$42,"") -> 
B45: ☞ | C45: 불량 유형별 상세
K58: =IFERROR(INDEX(K21:T21,MATCH(MAX(K43:T43),K43:T43,0)),"")&" 불량" -> 불량 | P58: 기타불량
B63: ☞ | C63: 제품별 불량 상세
M64: 제품명 | O64: 최다불량 | R64: 최소불량
M65: =C22 -> 알파메스틱 용기 | O65: =INDEX($K$21:$T$21,MATCH(MAX(K22:T22),K22:T22,0)) -> 흑점 | P65: =IF(SUM(K22:T22)=0,"",INDEX($K22:$T22,MATCH(MAX($K22:$T22),$K22:$T22,0))) ->  | Q65: =IFERROR(($P65/$J22),"") ->  | R65: =INDEX($K$21:$T$21,MATCH(MIN(K22:T22),K22:T22,0)) -> 흑점 | S65: =IF(SUM(K22:T22)=0,"",INDEX($K22:$T22,MATCH(MIN($K22:$T22),$K22:$T22,0))) ->  | T65: =IFERROR(($S65/$J22),"") -> 
M66: =C24 -> 0 | O66: =INDEX($K$21:$T$21,MATCH(MAX(K24:T24),K24:T24,0)) -> 흑점 | P66: =IF(SUM(K24:T24)=0,"",INDEX($K24:$T24,MATCH(MAX($K24:$T24),$K24:$T24,0))) ->  | Q66: =IFERROR(($P66/$J24),"") ->  | R66: =INDEX($K$21:$T$21,MATCH(MIN(K24:T24),K24:T24,0)) -> 흑점 | S66: =IF(SUM(K24:T24)=0,"",INDEX($K24:$T24,MATCH(MIN($K24:$T24),$K24:$T24,0))) ->  | T66: =IFERROR(($S66/$J24),"") -> 
M67: =C26 -> 0 | O67: =INDEX($K$21:$T$21,MATCH(MAX(K26:T26),K26:T26,0)) -> 흑점 | P67: =IF(SUM(K26:T26)=0,"",INDEX($K26:$T26,MATCH(MAX($K26:$T26),$K26:$T26,0))) ->  | Q67: =IFERROR(($P67/$J26),"") ->  | R67: =INDEX($K$21:$T$21,MATCH(MIN(K26:T26),K26:T26,0)) -> 흑점 | S67: =IF(SUM(K26:T26)=0,"",INDEX($K26:$T26,MATCH(MIN($K26:$T26),$K26:$T26,0))) ->  | T67: =IFERROR(($S67/$J26),"") -> 
M68: =C28 -> 0 | O68: =INDEX($K$21:$T$21,MATCH(MAX(K28:T28),K28:T28,0)) -> 흑점 | P68: =IF(SUM(K28:T28)=0,"",INDEX($K28:$T28,MATCH(MAX($K28:$T28),$K28:$T28,0))) ->  | Q68: =IFERROR(($P68/$J28),"") ->  | R68: =INDEX($K$21:$T$21,MATCH(MIN(K28:T28),K28:T28,0)) -> 흑점 | S68: =IF(SUM(K28:T28)=0,"",INDEX($K28:$T28,MATCH(MIN($K28:$T28),$K28:$T28,0))) ->  | T68: =IFERROR(($S68/$J28),"") -> 
M69: =C30 -> 0 | O69: =INDEX($K$21:$T$21,MATCH(MAX(K30:T30),K30:T30,0)) -> 흑점 | P69: =IF(SUM(K30:T30)=0,"",INDEX($K30:$T30,MATCH(MAX($K30:$T30),$K30:$T30,0))) ->  | Q69: =IFERROR(($P69/$J30),"") ->  | R69: =INDEX($K$21:$T$21,MATCH(MIN(K30:T30),K30:T30,0)) -> 흑점 | S69: =IF(SUM(K30:T30)=0,"",INDEX($K30:$T30,MATCH(MIN($K30:$T30),$K30:$T30,0))) ->  | T69: =IFERROR(($S69/$J30),"") -> 
M70: =C32 -> 0 | O70: =INDEX($K$21:$T$21,MATCH(MAX(K32:T32),K32:T32,0)) -> 흑점 | P70: =IF(SUM(K32:T32)=0,"",INDEX($K32:$T32,MATCH(MAX($K32:$T32),$K32:$T32,0))) ->  | Q70: =IFERROR(($P70/$J32),"") ->  | R70: =INDEX($K$21:$T$21,MATCH(MIN(K32:T32),K32:T32,0)) -> 흑점 | S70: =IF(SUM(K32:T32)=0,"",INDEX($K32:$T32,MATCH(MIN($K32:$T32),$K32:$T32,0))) ->  | T70: =IFERROR(($S70/$J32),"") -> 
P72: =IF(SUM(K36:T36)=0,"",INDEX($K36:$T36,MATCH(MAX($K36:$T36),$K36:$T36,0))) ->  | Q72: =IFERROR(($P72/$J36),"") ->  | S72: =IF(SUM(K36:T36)=0,"",INDEX($K36:$T36,MATCH(MIN($K36:$T36),$K36:$T36,0))) ->  | T72: =IFERROR(($S72/$J36),"") -> 
P73: =IF(SUM(K38:T38)=0,"",INDEX($K38:$T38,MATCH(MAX($K38:$T38),$K38:$T38,0))) ->  | Q73: =IFERROR(($P73/$J38),"") ->  | S73: =IF(SUM(K38:T38)=0,"",INDEX($K38:$T38,MATCH(MIN($K38:$T38),$K38:$T38,0))) ->  | T73: =IFERROR(($S73/$J38),"") -> 
P74: =IF(SUM(K40:T40)=0,"",INDEX($K40:$T40,MATCH(MAX($K40:$T40),$K40:$T40,0))) ->  | Q74: =IFERROR(($P74/$J40),"") ->  | S74: =IF(SUM(K40:T40)=0,"",INDEX($K40:$T40,MATCH(MIN($K40:$T40),$K40:$T40,0))) ->  | T74: =IFERROR(($S74/$J40),"") -> 
M75: 조치방법 | O75: 금형청소 및 조건수정

Sheet 조건기초
E2: 조건 기초 원본 Ⅰ
B4: 관리치수 항목 구분 | E4: NO. | F4: 제품명 | G4: 제품번호 | H4: 고객 | I4: CAVITY | J4: 검사포인트 | K4: 관리치수1 | L4: U S L | M4: L S L | N4: 관리치수2 | O4: U S L | P4: L S L | Q4: 관리치수3 | R4: U S L | S4: L S L | T4: 관리치수4 | U4: U S L | V4: L S L | W4: 관리치수5 | X4: U S L | Y4: L S L | Z4: 관리치수6 | AA4: U S L | AB4: L S L | AC4: 관리치수7 | AD4: U S L | AE4: L S L | AF4: 관리치수8 | AG4: U S L | AH4: L S L | AI4: 관리치수9 | AJ4: U S L | AK4: L S L | AL4: 관리치수10 | AM4: U S L | AN4: L S L | AO4: 관리치수11 | AP4: U S L | AQ4: L S L
B5: 관리치수1 | C5: 중량(g) | E5: 1 | F5: 알파메스틱 용기1 | G5: LT-A01-3A | H5: 롯데 | I5: 4 | J5: 3 | K5: 17.8 | L5: 0.8 | M5: 0.8 | N5: 61.7 | O5: 0.8 | P5: 0.8 | Q5: 73.9 | R5: 0.8 | S5: 0.8 | AR5: =E5 -> 1
B6: 관리치수2 | C6: 지름1(mm) | E6: 2 | F6: 알파메스틱 용기2 | AR6: =E6 -> 2
B7: 관리치수3 | C7: 높이1(mm) | E7: 3 | F7: 알파메스틱 용기3 | AR7: =E7 -> 3
B8: 관리치수4 | C8: 지름2(mm) | E8: 4 | F8: 알파메스틱 용기4 | AR8: 4
B9: 관리치수5 | C9: 높이2(mm) | E9: 5 | F9: 알파메스틱 용기5 | AR9: 5
B10: 관리치수6 | C10: 지름3(mm) | E10: 6 | F10: 알파메스틱 용기6 | AR10: 6
B11: 관리치수7 | C11: 높이3(mm) | E11: 7 | F11: 알파메스틱 용기7 | AR11: 7
B12: 관리치수8 | C12: 지름4(mm) | E12: 8 | F12: 알파메스틱 용기8 | AR12: 8
B13: 관리치수9 | C13: 높이4(mm) | E13: 9 | F13: 알파메스틱 용기9 | AR13: 9
B14: 관리치수10 | C14: POINT1 | E14: 10 | F14: 알파메스틱 용기10 | AR14: 10
B15: 관리치수11 | C15: POINT2 | E15: 11 | F15: 알파메스틱 용기11 | AR15: 11
E16: 12 | F16: 알파메스틱 용기12 | AR16: 12
E17: 13 | F17: 알파메스틱 용기13 | AR17: 13
E18: 14 | F18: 알파메스틱 용기14 | AR18: 14
E19: 15 | F19: 알파메스틱 용기15 | AR19: 15
E20: 16 | F20: 알파메스틱 용기16 | AR20: 16
E21: 17 | F21: 알파메스틱 용기17 | AR21: 17
E22: 18 | F22: 알파메스틱 용기18 | AR22: 18
E23: 19 | F23: 알파메스틱 용기19 | AR23: 19
E24: 20 | F24: 알파메스틱 용기20 | AR24: 20
E25: 21 | F25: 알파메스틱 용기21 | AR25: 21
E26: 22 | F26: 알파메스틱 용기22 | AR26: 22
E27: 23 | F27: 알파메스틱 용기23 | AR27: 23
E28: 24 | F28: 알파메스틱 용기24 | AR28: 24
E29: 25 | F29: 알파메스틱 용기25 | AR29: 25
E30: 26 | F30: 알파메스틱 용기26 | AR30: 26
E31: 27 | F31: 알파메스틱 용기27 | AR31: 27
E32: 28 | F32: 알파메스틱 용기28 | AR32: 28
E33: 29 | F33: 알파메스틱 용기29 | AR33: 29
E34: 30 | F34: 알파메스틱 용기30 | AR34: 30
E35: 31 | F35: 알파메스틱 용기31 | AR35: 31
E36: 32 | F36: 알파메스틱 용기32 | AR36: 32
E37: 33 | F37: 알파메스틱 용기33 | AR37: 33
E38: 34 | F38: 알파메스틱 용기34 | AR38: 34
E39: 35 | F39: 알파메스틱 용기35 | AR39: 35
E40: 36 | F40: 알파메스틱 용기36 | AR40: 36
E41: 37 | F41: 알파메스틱 용기37 | AR41: 37
E42: 38 | F42: 알파메스틱 용기38 | AR42: 38
E43: 39 | F43: 알파메스틱 용기39 | AR43: 39
E44: 40 | F44: 알파메스틱 용기40 | AR44: 40
E45: 41 | F45: 알파메스틱 용기41 | AR45: 41
E46: 42 | F46: 알파메스틱 용기42 | AR46: 42
E47: 43 | F47: 알파메스틱 용기43 | AR47: 43
E48: 44 | F48: 알파메스틱 용기44 | AR48: 44
E49: 45 | F49: 알파메스틱 용기45 | AR49: 45
E50: 46 | F50: 알파메스틱 용기46 | AR50: 46
E51: 47 | F51: 알파메스틱 용기47 | AR51: 47
E52: 48 | F52: 알파메스틱 용기48 | AR52: 48
E53: 49 | F53: 알파메스틱 용기49 | AR53: 49
E54: 50 | F54: 알파메스틱 용기50 | AR54: 50
E55: 51 | F55: 알파메스틱 용기51 | AR55: 51
E56: 52 | F56: 알파메스틱 용기52 | AR56: 52
E57: 53 | F57: 알파메스틱 용기53 | AR57: 53
E58: 54 | F58: 알파메스틱 용기54 | AR58: 54
E59: 55 | F59: 알파메스틱 용기55 | AR59: 55
E60: 56 | F60: 알파메스틱 용기56 | AR60: 56
E61: 57 | F61: 알파메스틱 용기57 | AR61: 57
E62: 58 | F62: 알파메스틱 용기58 | AR62: 58
E63: 59 | F63: 알파메스틱 용기59 | AR63: 59
E64: 60 | F64: 알파메스틱 용기60 | AR64: 60
E65: 61 | F65: 알파메스틱 용기61 | AR65: 61
E66: 62 | F66: 알파메스틱 용기62 | AR66: 62
E67: 63 | F67: 알파메스틱 용기63 | AR67: 63
E68: 64 | F68: 알파메스틱 용기64 | AR68: 64
E69: 65 | F69: 알파메스틱 용기65 | AR69: 65
E70: 66 | F70: 알파메스틱 용기66 | AR70: 66
E71: 67 | F71: 알파메스틱 용기67 | AR71: =E71 -> 67
E72: 68 | F72: 알파메스틱 용기68 | AR72: 68
E73: 69 | F73: 알파메스틱 용기69 | AR73: 69
E74: 70 | F74: 알파메스틱 용기70 | AR74: 70
E75: 71 | F75: 알파메스틱 용기71 | AR75: 71
E76: 72 | F76: 알파메스틱 용기72 | AR76: 72
E77: 73 | F77: 알파메스틱 용기73 | AR77: 73
E78: 74 | F78: 알파메스틱 용기74 | AR78: 74
E79: 75 | F79: 알파메스틱 용기75 | AR79: 75
E80: 76 | F80: 알파메스틱 용기76 | AR80: 76
E81: 77 | F81: 알파메스틱 용기77 | AR81: 77
E82: 78 | F82: 알파메스틱 용기78 | AR82: 78
E83: 79 | F83: 알파메스틱 용기79 | AR83: 79
E84: 80 | F84: 알파메스틱 용기80 | AR84: 80
E85: 81 | F85: 알파메스틱 용기81 | AR85: 81
E86: 82 | F86: 알파메스틱 용기82 | AR86: 82
E87: 83 | F87: 알파메스틱 용기83 | AR87: 83
E88: 84 | F88: 알파메스틱 용기84 | AR88: 84
E89: 85 | F89: 알파메스틱 용기85 | AR89: 85
E90: 86 | F90: 알파메스틱 용기86 | AR90: 86
E91: 87 | F91: 알파메스틱 용기87 | AR91: 87
E92: 88 | F92: 알파메스틱 용기88 | AR92: 88
E93: 89 | F93: 알파메스틱 용기89 | AR93: 89
E94: 90 | F94: 알파메스틱 용기90 | AR94: 90
E95: 91 | F95: 알파메스틱 용기91 | AR95: 91
E96: 92 | F96: 알파메스틱 용기92 | AR96: 92
E97: 93 | F97: 알파메스틱 용기93 | AR97: 93
E98: 94 | F98: 알파메스틱 용기94 | AR98: 94
E99: 95 | F99: 알파메스틱 용기95 | AR99: 95
E100: 96 | F100: 알파메스틱 용기96 | AR100: 96
E101: 97 | F101: 알파메스틱 용기97 | AR101: 97
E102: 98 | F102: 알파메스틱 용기98 | AR102: 98
E103: 99 | F103: 알파메스틱 용기99 | AR103: 99
E104: 100 | F104: 알파메스틱 용기100 | AR104: 100
E105: 101 | F105: 알파메스틱 용기101 | AR105: 101
E106: 102 | F106: 알파메스틱 용기102 | AR106: 102
E107: 103 | F107: 알파메스틱 용기103 | AR107: 103
E108: 104 | F108: 알파메스틱 용기104 | AR108: 104
E109: 105 | F109: 알파메스틱 용기105 | AR109: 105
E110: 106 | F110: 알파메스틱 용기106 | AR110: 106
E111: 107 | F111: 알파메스틱 용기107 | AR111: 107
E112: 108 | F112: 알파메스틱 용기108 | AR112: 108
E113: 109 | F113: 알파메스틱 용기109 | AR113: 109
E114: 110 | F114: 알파메스틱 용기110 | AR114: 110
E115: 111 | F115: 알파메스틱 용기111 | AR115: 111
E116: 112 | F116: 알파메스틱 용기112 | AR116: 112
E117: 113 | F117: 알파메스틱 용기113 | AR117: 113
E118: 114 | F118: 알파메스틱 용기114 | AR118: 114
E119: 115 | F119: 알파메스틱 용기115 | AR119: 115
E120: 116 | F120: 알파메스틱 용기116 | AR120: 116
E121: 117 | F121: 알파메스틱 용기117 | AR121: 117
E122: 118 | F122: 알파메스틱 용기118 | AR122: 118
E123: 119 | F123: 알파메스틱 용기119 | AR123: 119
E124: 120 | F124: 알파메스틱 용기120 | AR124: 120
E125: 121 | F125: 알파메스틱 용기121 | AR125: 121
E126: 122 | F126: 알파메스틱 용기122 | AR126: 122
E127: 123 | F127: 알파메스틱 용기123 | AR127: 123
E128: 124 | F128: 알파메스틱 용기124 | AR128: 124
E129: 125 | F129: 알파메스틱 용기125 | AR129: 125
E130: 126 | F130: 알파메스틱 용기126 | AR130: 126
E131: 127 | F131: 알파메스틱 용기127 | AR131: 127
E132: 128 | F132: 알파메스틱 용기128 | AR132: 128
E133: 129 | F133: 알파메스틱 용기129 | AR133: 129
E134: 130 | F134: 알파메스틱 용기130 | AR134: 130
E135: 131 | F135: 알파메스틱 용기131 | AR135: =E135 -> 131
E136: 132 | AR136: 132
E137: 133 | AR137: 133
E138: 134 | AR138: 134
E139: 135 | AR139: 135
E140: 136 | AR140: 136
E141: 137 | AR141: 137
E142: 138 | AR142: 138
E143: 139 | AR143: 139
E144: 140 | AR144: 140
E145: 141 | AR145: 141
E146: 142 | AR146: 142
E147: 143 | AR147: 143
E148: 144 | AR148: 144
E149: 145 | AR149: 145
E150: 146 | AR150: 146
E151: 147 | AR151: 147
E152: 148 | AR152: 148
E153: 149 | AR153: 149
E154: 150 | AR154: 150
E155: 151 | AR155: 151
E156: 152 | AR156: 152
E157: 153 | AR157: 153
E158: 154 | AR158: 154
E159: 155 | AR159: 155
E160: 156 | AR160: 156
E161: 157 | AR161: 157
E162: 158 | AR162: 158
E163: 159 | AR163: 159
E164: 160 | AR164: 160
E165: 161 | AR165: 161
E166: 162 | AR166: 162
E167: 163 | AR167: 163
E168: 164 | AR168: 164
E169: 165 | AR169: 165
E170: 166 | AR170: 166
E171: 167 | AR171: 167
E172: 168 | AR172: 168
E173: 169 | AR173: 169
E174: 170 | AR174: 170
E175: 171 | AR175: 171
E176: 172 | AR176: 172
E177: 173 | AR177: 173
E178: 174 | AR178: 174
E179: 175 | AR179: 175
E180: 176 | AR180: 176
E181: 177 | AR181: 177
E182: 178 | AR182: 178
E183: 179 | AR183: 179
E184: 180 | AR184: 180
E185: 181 | AR185: 181
E186: 182 | AR186: 182
E187: 183 | AR187: 183
E188: 184 | AR188: 184
E189: 185 | AR189: 185
E190: 186 | AR190: 186
E191: 187 | AR191: 187
E192: 188 | AR192: 188
E193: 189 | AR193: 189
E194: 190 | F194: 1 | G194: 1 | H194: 1 | J194: 1 | K194: 1 | L194: 1 | M194: 1 | N194: 1 | O194: 1 | P194: 1 | Q194: 1 | R194: 1 | S194: 1 | T194: 1 | U194: 1 | V194: 1 | W194: 1 | X194: 1 | Y194: 1 | Z194: 1 | AA194: 1 | AB194: 1 | AC194: 1 | AD194: 1 | AE194: 1 | AF194: 1 | AG194: 1 | AH194: 1 | AI194: 1 | AJ194: 1 | AK194: 1 | AL194: 1 | AM194: 1 | AN194: 1 | AO194: 1 | AP194: 1 | AQ194: 1 | AR194: 190

Sheet 사진자료11 (hidden)
B2: 일 자 | C2: 최다불량 | G2: 금일이슈
B3: 2014-11-12 | C3: 사진넣기 | G3: 사진넣기
B12: 2014-11-13 | C12: 사진넣기 | G12: 사진넣기 | K12: √ 금일 이슈 사항은 ① 미떼용기 금형이상 내측하단 버(cav.1)발생과 ② 미떼캡 닫힘불량(cav.2)
K13: ③ 펌프대캡 금형이상 버발생, ④ 펌프외병 cav.4 일시막힘 현상으로 버(cav.전체) 발생입니다.
K14: √ ① 미떼용기는 보고 후 추후 금형수리, ② 미떼캡(cav.2) 재막음, ③ 펌프대캡은 작업 중단 후
K15: 금형수리 및 조건수정, 제품 재선별 조치 하였으며, ④ 펌프외병 온도↑설정 조치 하였습니다.
K16: 금형수리, 금형청소, 막음 조치
B21: 2014-11-14 | C21: 사진넣기 | G21: 사진넣기 | K21: √ 금일 이슈 사항은 ① 펌프용기 미성형(cav.1) 발생 입니다. (불량 검사 미진행)
K22: 미떼캡 불량 수량 부족으로 검사 미진행 되었습니다.
K23: √ 금형청소 및 조건 수정하였고, 펌프용기는 오전 중 작업 중지로 불량 조치 하였습니다.
K24: 금형청소 및 조건 수정
B30: 2014-11-17 | C30: 사진넣기 | G30: 사진넣기 | K30: √ 금일 이슈 사항은 ① 미떼캡 전.측면 크렉과 웰더 현상이 함께 발생되는 것과,
K31: ② 알파용기 기름(cav.2), ③ 알파중캡 고리부분 크렉(cav.4) 발생입니다. (일부 불량처리)
K32: √ 조건수정과 금형청소로 불량 조치 하였으며, 알파중캡은 조건수정으로 60% 개선 되었습니다.
K33: 조건 수정 및 금형 청소
B39: 2014-11-18 | C39: 사진넣기 | G39: 사진넣기 | K39: √ 금일 이슈 사항은 ① 알파용기(cav.1,4) 하단면 얇아지는 불량과, ② 알파중캡 미성형(cav.2),
K40: ③ 펌프대캡 미성형 (불량검사 없음)입니다.
K41: √ 조건수정으로 미성형 및 알파용기 불량 조치 하였으며, 펌프대캡 주간 생산 중지하였습니다.
B48: 2014-11-19 | C48: 사진넣기 | G48: 사진넣기 | K48: √ 금일 이슈 사항은 ① 알파원캡 기름불량과, ② 알파중캡 버(cav.1) 발생입니다.
K49: (알파상캡 불량 수량 부족으로 검사 없음)
K50: √ 금형청소 및 조건수정으로 불량 조치 하였습니다.
K51: 금형 청소 및 조건 수정
B57: 2014-11-20 | C57: 사진넣기 | G57: 사진넣기
B66: 2014-11-21 | C66: 사진넣기 | G66: 사진넣기
B75: 2014-11-24 | C75: 사진넣기 | G75: 사진넣기
B84: 2014-11-25 | C84: 사진넣기 | G84: 사진넣기
B93: 2014-11-28 | C93: 사진넣기 | G93: 사진넣기
B102: 2014-11-29

Sheet 주간보고서 (hidden)
C1: 검사일자 | D1: 검사시간 | E1: 제품번호 | F1: 품명 | G1: 생산설비 | H1: 작업자 | I1: 검사수량 | J1: 기능성불량 | P1: 위생불량 | S1: 기타 | T1: 조치자 | U1: 조치확인 (조치자작성) | V1: 조치자확인 | W1: QC확인
J2: 흑점 | K2: 버 | L2: 게이트버 | M2: 크렉외 | N2: 웰더 | O2: 미성형 | P2: 기름 | Q2: 이물 | R2: 오염 | S2: 투입이상
B3: 1주차 | C3: 2014-11-12 | E3: 24 | F3: 미떼 용기 | G3: 15 | H3: 후엔 | I3: 64 | J3: 8 | K3: 0 | L3: 2 | M3: 10 | N3: 0 | O3: 0 | P3: 3 | Q3: 23 | R3: 8 | S3: 10 | T3: 한재근 | V3: 박지선 | W3: 조해인
B4: 1주차 | C4: 2014-11-12 | E4: 3 | F4: 펌프S 대캡(회색) | G4: 13 | H4: 박순덕 | I4: 179 | J4: 5 | K4: 97 | L4: 0 | M4: 0 | N4: 0 | O4: 49 | P4: 11 | Q4: 6 | R4: 0 | S4: 11 | T4: 주양 | U4: 상단버(cav.2),측면버(cav.전체) 온도내림 | V4: 박지선 | W4: 안소현
B5: 1주차 | C5: 2014-11-12 | E5: 7 | F5: 펌프 외병 | G5: 12 | H5: 박미숙 | I5: 103 | J5: 0 | K5: 4 | L5: 36 | M5: 13 | N5: 0 | O5: 4 | P5: 32 | Q5: 6 | R5: 5 | S5: 3 | T5: 주양 | V5: 박지선 | W5: 안소현
B6: 1주차 | C6: 2014-11-12 | E6: 25 | F6: 미떼 캡 | G6: 16 | H6: 황춘숙 | I6: 54 | J6: 0 | K6: 0 | L6: 0 | M6: 40 | N6: 13 | O6: 1 | P6: 0 | Q6: 0 | R6: 0 | S6: 0 | T6: 주양 | U6: 크렉(cav.3,4), 웰더(cav.3) 생산 중지 | V6: 박지선 | W6: 안소현
B7: 1주차 | C7: 2014-11-12 | E7: 1 | F7: 알파메스틱 용기 | G7: IBM2 | H7: 박순덕 | I7: 54 | J7: 46 | K7: 0 | L7: 0 | M7: 0 | N7: 0 | O7: 0 | P7: 8 | Q7: 0 | R7: 0 | S7: 0 | T7: 주양 | V7: 박지선 | W7: 안소현
B8: 1주차 | C8: 2014-11-12 | E8: 2 | F8: 알파메스틱 원피스 캡 | G8: 10 | H8: 황춘숙 | I8: 103 | J8: 93 | K8: 0 | L8: 0 | M8: 0 | N8: 0 | O8: 0 | P8: 10 | Q8: 0 | R8: 0 | S8: 0 | T8: 주양 | V8: 박지선 | W8: 안소현
B9: 1주차 | C9: 2014-11-13 | E9: 3 | F9: 펌프S 대캡(회색) | G9: 13 | H9: 후엔 | I9: 100 | J9: 10 | K9: 74 | L9: 0 | M9: 11 | N9: 0 | O9: 2 | P9: 0 | Q9: 3 | R9: 0 | S9: 0 | T9: 박지선 | U9: 금형수리및조건수정 | V9: 박지선 | W9: 조해인
B10: 1주차 | C10: 2014-11-13 | E10: 2 | F10: 알파메스틱 원피스 캡 | G10: 10 | H10: 박금란 | I10: 150 | J10: 91 | K10: 0 | L10: 0 | M10: 15 | N10: 0 | O10: 0 | P10: 24 | Q10: 0 | R10: 20 | S10: 0 | T10: 한재근 | U10: 금형청소 | V10: 박지선 | W10: 조해인
B11: 1주차 | C11: 2014-11-13 | E11: 1 | F11: 알파메스틱 용기 | G11: IBM2 | H11: 후엔 | I11: 100 | J11: 72 | K11: 0 | L11: 0 | M11: 0 | N11: 0 | O11: 0 | P11: 5 | Q11: 8 | R11: 13 | S11: 2 | T11: 한재근 | V11: 박지선 | W11: 조해인
B12: 1주차 | C12: 2014-11-13 | E12: 7 | F12: 펌프 외병 | G12: 12 | H12: 이영희 | I12: 100 | J12: 10 | K12: 2 | L12: 23 | M12: 25 | N12: 0 | O12: 17 | P12: 11 | Q12: 4 | R12: 8 | S12: 0 | T12: 한재근 | U12: 조건수정 | V12: 박지선 | W12: 조해인
B13: 1주차 | C13: 2014-11-13 | D13: 09:32 pm | E13: 24 | F13: 미떼 용기 | G13: 15 | H13: 박미숙 | I13: 34 | J13: 4 | K13: 0 | L13: 0 | M13: 1 | N13: 0 | O13: 0 | P13: 3 | Q13: 0 | R13: 0 | S13: 26 | T13: 주양 | V13: 박지선 | W13: 안소현
B14: 1주차 | C14: 2014-11-13 | D14: 09:32 pm | E14: 25 | F14: 미떼 캡 | G14: 16 | H14: 박순덕 | I14: 91 | J14: 0 | K14: 0 | L14: 0 | M14: 32 | N14: 5 | O14: 12 | P14: 0 | Q14: 0 | R14: 0 | S14: 42 | T14: 주양 | U14: cav.2 주간재생산 후 막음 | V14: 박지선 | W14: 안소현
B15: 1주차 | C15: 2014-11-13 | D15: 01:22 am | E15: 7 | F15: 펌프 외병 | G15: 12 | H15: 황춘숙 | I15: 71 | J15: 0 | K15: 0 | L15: 1 | M15: 13 | N15: 0 | O15: 1 | P15: 56 | Q15: 0 | R15: 0 | S15: 0 | T15: 주양 | U15: 금형청소 | V15: 박지선 | W15: 안소현
B16: 1주차 | C16: 2014-11-13 | D16: 03:30 am | E16: 2 | F16: 알파메스틱 원피스 캡 | G16: 10 | H16: 니가 | I16: 104 | J16: 91 | K16: 0 | L16: 0 | M16: 0 | N16: 0 | O16: 0 | P16: 12 | Q16: 1 | R16: 0 | S16: 0 | T16: 주양 | U16: 금형청소 | V16: 박지선 | W16: 안소현
B17: 1주차 | C17: 2014-11-13 | D17: 03:55 am | E17: 7 | F17: 펌프 외병 | G17: 12 | H17: 황춘숙 | I17: 115 | J17: 0 | K17: 107 | L17: 0 | M17: 8 | N17: 0 | O17: 0 | P17: 0 | Q17: 0 | R17: 0 | S17: 0 | T17: 주양 | U17: 온도 조건 재설정 | V17: 박지선 | W17: 안소현
B18: 1주차 | C18: 2014-11-14 | D18: 09:02 am | E18: 1 | F18: 알파메스틱 용기 | G18: IBM2 | H18: 마야 | I18: 80 | J18: 62 | K18: 0 | L18: 0 | M18: 0 | N18: 0 | O18: 0 | P18: 7 | Q18: 0 | R18: 11 | S18: 0 | T18: 한재근 | V18: 박지선 | W18: 조해인
B19: 1주차 | C19: 2014-11-14 | D19: 11:05 am | E19: 2 | F19: 알파메스틱 원피스 캡 | G19: 10 | H19: 마야 | I19: 100 | J19: 76 | K19: 0 | L19: 0 | M19: 1 | N19: 0 | O19: 0 | P19: 21 | Q19: 0 | R19: 2 | S19: 0 | T19: 한재근 | U19: 금형청소 | V19: 박지선 | W19: 조해인
B20: 1주차 | C20: 2014-11-14 | D20: 02:49 pm | E20: 24 | F20: 미떼 용기 | G20: 15 | H20: 박금자 | I20: 31 | J20: 11 | K20: 0 | L20: 0 | M20: 4 | N20: 0 | O20: 0 | P20: 0 | Q20: 5 | R20: 7 | S20: 4 | T20: 한재근 | V20: 박지선 | W20: 조해인
B21: 1주차 | C21: 2014-11-17 | D21: 10:38:00 | E21: 2 | F21: 알파메스틱 원피스 캡 | G21: 10 | H21: 박미숙 | I21: 309 | J21: 276 | K21: 0 | L21: 0 | M21: 0 | N21: 0 | O21: 2 | P21: 28 | Q21: 0 | R21: 3 | S21: 0 | T21: 박지선 | U21: 초도불량 | V21: 박지선 | W21: 조해인
B22: 1주차 | C22: 2014-11-17 | D22: 11:41 am | E22: 20 | F22: 알파메스틱 중캡 | G22: 1 | H22: 니가 | I22: 183 | J22: 117 | K22: 0 | L22: 0 | M22: 0 | N22: 0 | O22: 0 | P22: 21 | Q22: 18 | R22: 27 | S22: 0 | T22: 박지선 | U22: 초도불량 | V22: 박지선 | W22: 조해인
B23: 1주차 | C23: 2014-11-17 | D23: 03:12 pm | E23: 1 | F23: 알파메스틱 용기 | G23: IBM2 | H23: 박순덕 | I23: 33 | J23: 25 | K23: 0 | L23: 0 | M23: 0 | N23: 0 | O23: 0 | P23: 7 | Q23: 0 | R23: 0 | S23: 1 | T23: 박지선 | U23: 금형청소 | V23: 박지선 | W23: 조해인
B24: 1주차 | C24: 2014-11-17 | D24: 05:20 pm | E24: 25 | F24: 미떼 캡 | G24: 16 | H24: 황춘숙 | I24: 10 | J24: 0 | K24: 0 | L24: 0 | M24: 0 | N24: 9 | O24: 0 | P24: 0 | Q24: 0 | R24: 0 | S24: 1 | T24: 박지선 | U24: 조건수정(가스빼기) | V24: 박지선 | W24: 조해인
B25: 1주차 | C25: 2014-11-17 | D25: 02:36 am | E25: 3 | F25: 펌프S 대캡(회색) | G25: 13 | H25: 이영희 | I25: 81 | J25: 45 | K25: 0 | L25: 0 | M25: 0 | N25: 0 | O25: 28 | P25: 5 | Q25: 3 | R25: 0 | S25: 0 | T25: 한재근 | V25: 박지선 | W25: 안소현
B26: 1주차 | C26: 2014-11-17 | D26: 03:06 am | E26: 25 | F26: 미떼 캡 | G26: 16 | H26: 박금자 | I26: 30 | J26: 0 | K26: 0 | L26: 0 | M26: 30 | N26: 0 | O26: 0 | P26: 0 | Q26: 0 | R26: 0 | S26: 0 | T26: 한재근 | V26: 박지선 | W26: 안소현
B27: 1주차 | C27: 2014-11-17 | D27: 04:38 am | E27: 19 | F27: 알파메스틱 상캡 | G27: 5 | H27: 후엔 | I27: 73 | J27: 4 | K27: 0 | L27: 0 | M27: 0 | N27: 0 | O27: 0 | P27: 13 | Q27: 56 | R27: 0 | S27: 0 | T27: 한재근 | V27: 박지선 | W27: 안소현
B28: 1주차 | C28: 2014-11-17 | D28: 06:15 am | E28: 1 | F28: 알파메스틱 용기 | G28: IBM2 | H28: 이영희 | I28: 112 | J28: 28 | K28: 0 | L28: 0 | M28: 0 | N28: 0 | O28: 0 | P28: 77 | Q28: 7 | R28: 0 | S28: 0 | T28: 한재근 | V28: 박지선 | W28: 안소현
B29: 1주차 | C29: 2014-11-18 | D29: 09:46 am | E29: 2 | F29: 알파메스틱 원피스 캡 | G29: 10 | H29: 황춘숙 | I29: 43 | J29: 34 | K29: 0 | L29: 0 | M29: 0 | N29: 0 | O29: 0 | P29: 7 | Q29: 0 | R29: 2 | S29: 0 | T29: 박지선 | V29: 박지선 | W29: 조해인
B30: 1주차 | C30: 2014-11-18 | D30: 01:12 pm | E30: 1 | F30: 알파메스틱 용기 | G30: IBM2 | H30: 니가 | I30: 63 | J30: 32 | K30: 0 | L30: 0 | M30: 0 | N30: 0 | O30: 0 | P30: 22 | Q30: 6 | R30: 0 | S30: 3 | T30: 박지선 | U30: 금형청소 | V30: 박지선 | W30: 조해인
B31: 1주차 | C31: 2014-11-18 | D31: 02:27 pm | E31: 19 | F31: 알파메스틱 상캡 | G31: 5 | H31: 박미숙 | I31: 60 | J31: 16 | K31: 0 | L31: 0 | M31: 0 | N31: 0 | O31: 0 | P31: 26 | Q31: 15 | R31: 3 | S31: 0 | T31: 박지선 | V31: 박지선 | W31: 조해인
B32: 1주차 | C32: 2014-11-18 | D32: 05:28 pm | E32: 20 | F32: 알파메스틱 중캡 | G32: 1 | H32: 박미숙 | I32: 172 | J32: 138 | K32: 0 | L32: 0 | M32: 3 | N32: 0 | O32: 2 | P32: 23 | Q32: 0 | R32: 5 | S32: 1 | T32: 박지선 | V32: 박지선 | W32: 조해인
B33: 1주차 | C33: 2014-11-18 | D33: 01:52 am | E33: 20 | F33: 알파메스틱 중캡 | G33: 1 | H33: 마야 | I33: 67 | J33: 34 | K33: 0 | L33: 0 | M33: 2 | N33: 0 | O33: 16 | P33: 15 | Q33: 0 | R33: 0 | S33: 0 | T33: 한재근 | V33: 박지선 | W33: 안소현
B34: 1주차 | C34: 2014-11-18 | D34: 03:18 am | E34: 1 | F34: 알파메스틱 용기 | G34: IBM2 | H34: 오영순 | I34: 89 | J34: 6 | K34: 0 | L34: 0 | M34: 0 | N34: 0 | O34: 0 | P34: 0 | Q34: 0 | R34: 0 | S34: 83 | T34: 한재근 | V34: 박지선 | W34: 안소현
B35: 1주차 | C35: 2014-11-18 | D35: 04:52 am | E35: 2 | F35: 알파메스틱 원피스 캡 | G35: 10 | H35: 박금자 | I35: 56 | J35: 52 | K35: 0 | L35: 0 | M35: 0 | N35: 0 | O35: 0 | P35: 4 | Q35: 0 | R35: 0 | S35: 0 | T35: 한재근 | V35: 박지선 | W35: 안소현
B36: 2주차 | C36: 2014-11-19 | D36: 09:18 am | E36: 2 | F36: 알파메스틱 원피스 캡 | G36: 10 | H36: 박순덕 | I36: =104+1+48+4+3 -> 160 | J36: 104 | K36: 0 | L36: 0 | M36: 1 | N36: 0 | O36: 0 | P36: 48 | Q36: 4 | R36: 3 | S36: 0 | T36: 박지선 | U36: 금형청소 | V36: 박지선 | W36: 조해인
B37: 2주차 | C37: 2014-11-19 | D37: 01:25 pm | E37: 20 | F37: 알파메스틱 중캡 | G37: 1 | H37: 황춘숙 | I37: 56 | J37: 36 | K37: 7 | L37: 0 | M37: 1 | N37: 0 | O37: 1 | P37: 11 | Q37: 0 | R37: 0 | S37: 0 | T37: 박지선 | U37: 조건수정(온도수정) | V37: 박지선 | W37: 조해인
B38: 2주차 | C38: 2014-11-19 | D38: 03:14 pm | E38: 1 | F38: 알파메스틱 용기 | G38: IBM2 | H38: 박미숙 | I38: =118+13+12+16+2 -> 161 | J38: 118 | K38: 0 | L38: 0 | M38: 0 | N38: 0 | O38: 0 | P38: 13 | Q38: 12 | R38: 16 | S38: 2 | T38: 박지선 | V38: 박지선 | W38: 조해인
B39: 2주차 | C39: 2014-11-19 | D39: 05:34 pm | E39: 2 | F39: 알파메스틱 원피스 캡 | G39: 10 | H39: 박순덕 | I39: =J39+2+30+8+1 -> 217 | J39: 176 | K39: 0 | L39: 0 | M39: 2 | N39: 0 | O39: 0 | P39: 30 | Q39: 8 | R39: 1 | S39: 0 | T39: 박지선 | V39: 박지선 | W39: 조해인
B40: 2주차 | C40: 2014-11-19 | D40: 02:17 am | E40: 2 | F40: 알파메스틱 원피스 캡 | G40: 10 | H40: 이영희 | I40: 101 | J40: 65 | K40: 0 | L40: 0 | M40: 5 | N40: 0 | O40: 1 | P40: 25 | Q40: 5 | R40: 0 | S40: 0 | T40: 한재근 | V40: 박지선 | W40: 안소현
B41: 2주차 | C41: 2014-11-19 | D41: 04:40:00 | E41: 20 | F41: 알파메스틱 중캡 | G41: 1 | H41: 박금자 | I41: 81 | J41: 34 | K41: 0 | L41: 0 | M41: 1 | N41: 0 | O41: 0 | P41: 41 | Q41: 5 | R41: 0 | S41: 0 | T41: 한재근 | V41: 박지선 | W41: 안소현
B42: 2주차 | C42: 2014-11-20 | D42: 11:30:00 | E42: 2 | F42: 알파메스틱 원피스 캡 | G42: 10 | H42: 니가 | I42: =SUM(J42:S42) -> 65 | J42: 49 | K42: 0 | L42: 0 | M42: 0 | N42: 0 | O42: 0 | P42: 12 | Q42: 3 | R42: 1 | S42: 0 | T42: 박지선 | V42: 박지선 | W42: 조해인
B43: 2주차 | C43: 2014-11-20 | D43: 01:20 pm | E43: 20 | F43: 알파메스틱 중캡 | G43: 1 | H43: 박순덕 | I43: =SUM(J43:S43) -> 84 | J43: 63 | K43: 0 | L43: 0 | M43: 1 | N43: 0 | O43: 4 | P43: 13 | Q43: 3 | R43: 0 | S43: 0 | T43: 박지선 | V43: 박지선 | W43: 조해인
B44: 2주차 | C44: 2014-11-20 | D44: 03:48 pm | E44: 1 | F44: 알파메스틱 용기 | G44: IBM2 | H44: 황춘숙 | I44: =SUM(J44:S44) -> 162 | J44: 67 | K44: 0 | L44: 0 | M44: 2 | N44: 0 | O44: 0 | P44: 91 | Q44: 0 | R44: 0 | S44: 2 | T44: 박지선 | U44: 금형청소 | V44: 박지선 | W44: 조해인
B45: 2주차 | C45: 2014-11-20 | D45: 04:53 pm | E45: 2 | F45: 알파메스틱 원피스 캡 | G45: 10 | H45: 니가 | I45: 167 | J45: 148 | K45: 0 | L45: 0 | M45: 0 | N45: 0 | O45: 0 | P45: 10 | Q45: 7 | R45: 2 | S45: 0 | T45: 박지선 | V45: 박지선 | W45: 조해인
B46: 2주차 | C46: 2014-11-20 | D46: 05:59 pm | E46: 19 | F46: 알파메스틱 상캡 | G46: 5 | H46: 박순덕 | I46: 28 | J46: 8 | K46: 0 | L46: 0 | M46: 0 | N46: 0 | O46: 0 | P46: 6 | Q46: 8 | R46: 6 | S46: 0 | T46: 박지선 | V46: 박지선 | W46: 조해인
B47: 2주차 | C47: 2014-11-20 | D47: 01:28 am | E47: 1 | F47: 알파메스틱 용기 | G47: IBM2 | H47: 마야 | I47: 95 | J47: 72 | K47: 0 | L47: 0 | M47: 0 | N47: 0 | O47: 0 | P47: 3 | Q47: 20 | R47: 0 | S47: 0 | T47: 한재근 | V47: 박지선 | W47: 안소현
B48: 2주차 | C48: 2014-11-20 | D48: 02:45 am | E48: 20 | F48: 알파메스틱 중캡 | G48: 1 | H48: 이영희 | I48: 52 | J48: 30 | K48: 0 | L48: 0 | M48: 1 | N48: 0 | O48: 0 | P48: 17 | Q48: 4 | R48: 0 | S48: 0 | T48: 한재근 | V48: 박지선 | W48: 안소현
B49: 2주차 | C49: 2014-11-20 | D49: 04:21 am | E49: 2 | F49: 알파메스틱 원피스 캡 | G49: 10 | H49: 오영순 | I49: 103 | J49: 66 | K49: 0 | L49: 0 | M49: 0 | N49: 0 | O49: 1 | P49: 36 | Q49: 0 | R49: 0 | S49: 0 | T49: 한재근 | V49: 박지선 | W49: 안소현
B50: 2주차 | C50: 2014-11-20 | D50: 06:12 am | E50: 3 | F50: 펌프S 대캡(회색) | G50: 13 | H50: 마야 | I50: 45 | J50: 42 | K50: 0 | L50: 0 | M50: 0 | N50: 0 | O50: 1 | P50: 2 | Q50: 0 | R50: 0 | S50: 0 | T50: 한재근 | V50: 박지선 | W50: 안소현
B51: 2주차 | C51: 2014-11-21 | D51: 09:26 am | E51: 1 | F51: 알파메스틱 용기 | G51: IBM2 | H51: 박순덕 | I51: 61 | J51: 61 | K51: 0 | L51: 0 | M51: 0 | N51: 0 | O51: 0 | P51: 0 | Q51: 0 | R51: 0 | S51: 0 | T51: 박지선 | V51: 박지선 | W51: 조해인
B52: 2주차 | C52: 2014-11-21 | D52: 01:21 pm | E52: 2 | F52: 알파메스틱 원피스 캡 | G52: 10 | H52: 박미숙 | I52: 120 | J52: 107 | K52: 0 | L52: 0 | M52: 7 | N52: 0 | O52: 0 | P52: 5 | Q52: 1 | R52: 0 | S52: 0 | T52: 박지선 | V52: 박지선 | W52: 조해인
B53: 2주차 | C53: 2014-11-21 | D53: 02:35 pm | E53: 20 | F53: 알파메스틱 중캡 | G53: 1 | H53: 니가 | I53: 75 | J53: 55 | K53: 0 | L53: 0 | M53: 0 | N53: 0 | O53: 8 | P53: 10 | Q53: 2 | R53: 0 | S53: 0 | T53: 박지선 | V53: 박지선 | W53: 조해인
B54: 2주차 | C54: 2014-11-21 | D54: 04:35 pm | E54: 3 | F54: 펌프S 대캡(회색) | G54: 13 | H54: 박순덕 | I54: 37 | J54: 37 | K54: 0 | L54: 0 | M54: 0 | N54: 0 | O54: 0 | P54: 0 | Q54: 0 | R54: 0 | S54: 0 | T54: 박지선 | V54: 박지선 | W54: 조해인
B55: 2주차 | C55: 2014-11-21 | D55: 09:56 pm | E55: 1 | F55: 알파메스틱 용기 | G55: IBM2 | H55: 박금자 | I55: 63 | J55: 63 | K55: 0 | L55: 0 | M55: 0 | N55: 0 | O55: 0 | P55: 0 | Q55: 0 | R55: 0 | S55: 0 | T55: 한재근 | V55: 박지선 | W55: 안소현
B56: 2주차 | C56: 2014-11-21 | D56: 09:56 pm | E56: 2 | F56: 알파메스틱 원피스 캡 | G56: 10 | H56: 후엔 | I56: 100 | J56: 67 | K56: 0 | L56: 0 | M56: 0 | N56: 0 | O56: 0 | P56: 28 | Q56: 5 | R56: 0 | S56: 0 | T56: 한재근 | V56: 박지선 | W56: 안소현
B57: 2주차 | C57: 2014-11-21 | D57: 09:56 pm | E57: 3 | F57: 펌프S 대캡(회색) | G57: 13 | H57: 박금자 | I57: 56 | J57: 56 | K57: 0 | L57: 0 | M57: 0 | N57: 0 | O57: 0 | P57: 0 | Q57: 0 | R57: 0 | S57: 0 | T57: 한재근 | V57: 박지선 | W57: 안소현
B58: 2주차 | C58: 2014-11-21 | D58: 09:56 pm | E58: 20 | F58: 알파메스틱 중캡 | G58: 1 | H58: 오영순 | I58: 29 | J58: 7 | K58: 0 | L58: 0 | M58: 0 | N58: 0 | O58: 0 | P58: 22 | Q58: 0 | R58: 0 | S58: 0 | T58: 한재근 | V58: 박지선 | W58: 안소현
B59: 2주차 | C59: 2014-11-24 | D59: 04:34 pm | E59: 20 | F59: 알파메스틱 중캡 | G59: 1 | H59: 후엔 | I59: 39 | J59: 31 | K59: 0 | L59: 0 | M59: 0 | N59: 0 | O59: 0 | P59: 8 | Q59: 0 | R59: 0 | S59: 0 | T59: 박지선 | V59: 박지선 | W59: 조해인
B60: 2주차 | C60: 2014-11-24 | D60: 05:52 pm | E60: 1 | F60: 알파메스틱 용기 | G60: IBM2 | H60: 마야 | I60: 35 | J60: 19 | K60: 0 | L60: 0 | M60: 0 | N60: 0 | O60: 0 | P60: 5 | Q60: 5 | R60: 0 | S60: 6 | T60: 박지선 | V60: 박지선 | W60: 조해인
B61: 2주차 | C61: 2014-11-24 | D61: 05:09 am | E61: 20 | F61: 알파메스틱 중캡 | G61: 1 | H61: 박미숙 | I61: 209 | J61: 142 | K61: 8 | L61: 0 | M61: 4 | N61: 0 | O61: 4 | P61: 43 | Q61: 8 | R61: 0 | S61: 0 | T61: 주양 | V61: 박지선 | W61: 안소현
B62: 2주차 | C62: 2014-11-24 | D62: 05:55 am | E62: 1 | F62: 알파메스틱 용기 | G62: IBM2 | H62: 니가 | I62: 128 | J62: 98 | K62: 0 | L62: 0 | M62: 4 | N62: 0 | O62: 0 | P62: 0 | Q62: 26 | R62: 0 | S62: 0 | T62: 주양 | V62: 박지선 | W62: 안소현
B63: 2주차 | C63: 2014-11-25 | D63: 01:34 pm | E63: 19 | F63: 알파메스틱 상캡 | G63: 5 | H63: 마야 | I63: 6 | J63: 4 | K63: 0 | L63: 0 | M63: 0 | N63: 0 | O63: 0 | P63: 2 | Q63: 0 | R63: 0 | S63: 0 | T63: 한재근 | V63: 박지선 | W63: 조해인
B64: 2주차 | C64: 2014-11-25 | D64: 01:37 pm | E64: 20 | F64: 알파메스틱 중캡 | G64: 1 | H64: 마야 | I64: 35 | J64: 30 | K64: 0 | L64: 0 | M64: 1 | N64: 0 | O64: 0 | P64: 1 | Q64: 3 | R64: 0 | S64: 0 | T64: 한재근 | V64: 박지선 | W64: 조해인
B65: 2주차 | C65: 2014-11-25 | D65: 02:23 pm | E65: 1 | F65: 알파메스틱 용기 | G65: IBM2 | H65: 오영순 | I65: 69 | J65: 47 | K65: 0 | L65: 0 | M65: 3 | N65: 0 | O65: 2 | P65: 13 | Q65: 4 | R65: 0 | S65: 2 | T65: 한재근 | V65: 박지선 | W65: 조해인
B66: 2주차 | C66: 2014-11-25 | D66: 05:07 pm | E66: 2 | F66: 알파메스틱 원피스 캡 | G66: 10 | H66: 박금자 | I66: 137 | J66: 83 | K66: 0 | L66: 0 | M66: 0 | N66: 0 | O66: 0 | P66: 50 | Q66: 4 | R66: 0 | S66: 0 | T66: 한재근 | U66: 금형청소 | V66: 박지선 | W66: 조해인
B67: 2주차 | C67: 2014-11-25 | D67: 03:58 am | E67: 28 | F67: 닥터유 민트용기 하 | G67: 11 | H67: 니가 | I67: =SUM(J67:S67) -> 111 | J67: 0 | K67: 0 | L67: 0 | M67: 15 | N67: 0 | O67: 0 | P67: 30 | Q67: 66 | R67: 0 | S67: 0 | T67: 주양 | V67: 박지선 | W67: 안소현
B68: 2주차 | C68: 2014-11-25 | D68: 03:58 am | E68: 1 | F68: 알파메스틱 용기 | G68: 1 | H68: 박미숙 | I68: =SUM(J68:S68) -> 145 | J68: 123 | K68: 0 | L68: 0 | M68: 0 | N68: 0 | O68: 0 | P68: 0 | Q68: 22 | R68: 0 | S68: 0 | T68: 주양 | V68: 박지선 | W68: 안소현
B69: 2주차 | C69: 2014-11-25 | D69: 03:58 am | E69: 2 | F69: 알파메스틱 원피스 캡 | G69: 2 | H69: 박순덕 | I69: 28 | J69: 16 | K69: 0 | L69: 0 | M69: 0 | N69: 0 | O69: 0 | P69: 11 | Q69: 0 | R69: 0 | S69: 1 | T69: 주양 | V69: 박지선 | W69: 안소현
B70: 2주차 | C70: 2014-11-25 | D70: 03:58 am | E70: 20 | F70: 알파메스틱 중캡 | G70: 20 | H70: 황춘숙 | I70: 29 | J70: 6 | K70: 0 | L70: 0 | M70: 0 | N70: 0 | O70: 0 | P70: 23 | Q70: 0 | R70: 0 | S70: 0 | T70: 주양 | V70: 박지선 | W70: 안소현
G73: 1주차 | H73: 기능성불량 | N73: 위생불량 | Q73: 기타 | R73: 2주차 | S73: 기능성불량 | Y73: 위생불량 | AB73: 기타
G74: 검사수량 | H74: 흑점 | I74: 버 | J74: 게이트버 | K74: 크렉외 | L74: 웰더 | M74: 미성형 | N74: 기름 | O74: 이물 | P74: 오염 | Q74: 투입이상 | R74: 검사수량 | S74: 흑점 | T74: 버 | U74: 게이트버 | V74: 크렉외 | W74: 웰더 | X74: 미성형 | Y74: 기름 | Z74: 이물 | AA74: 오염 | AB74: 투입이상
E75: 1 | F75: 알파메스틱 용기 | G75: =SUMIFS(I$3:I$70,$F$3:$F$70,$F75,$B$3:$B$70,$G$73) -> 531 | H75: =SUMIFS(J$3:J$70,$F$3:$F$70,$F75,$B$3:$B$70,$G$73) -> 271 | I75: =SUMIFS(K$3:K$70,$F$3:$F$70,$F75,$B$3:$B$70,$G$73) -> 0 | J75: 0 | K75: 0 | L75: 0 | M75: 0 | N75: 126 | O75: 21 | P75: 24 | Q75: 89 | R75: =SUMIFS(I$3:I$70,$F$3:$F$70,$F75,$B$3:$B$70,$R$73) -> 919 | S75: =SUMIFS(J$3:J$70,$F$3:$F$70,$F75,$B$3:$B$70,$R$73) -> 668 | T75: 0 | U75: 0 | V75: 9 | W75: 0 | X75: 2 | Y75: 125 | Z75: 89 | AA75: 16 | AB75: 12
E76: 2 | F76: 알파메스틱 원피스 캡 | G76: =SUMIFS(I$3:I$70,$F$3:$F$70,$F76,$B$3:$B$70,$G$73) -> 865 | H76: 713 | I76: 0 | J76: 0 | K76: 16 | L76: 0 | M76: 2 | N76: 106 | O76: 1 | P76: 27 | Q76: 0 | R76: =SUMIFS(I$3:I$70,$F$3:$F$70,$F76,$B$3:$B$70,$R$73) -> 1198 | S76: 881 | T76: 0 | U76: 0 | V76: 15 | W76: 0 | X76: 2 | Y76: 255 | Z76: 37 | AA76: 7 | AB76: 1
E77: 3 | F77: 펌프S 대캡(회색) | G77: 360 | H77: 60 | I77: 171 | J77: 0 | K77: 11 | L77: 0 | M77: 79 | N77: 16 | O77: 12 | P77: 0 | Q77: 11 | R77: 138 | S77: 135 | T77: 0 | U77: 0 | V77: 0 | W77: 0 | X77: 1 | Y77: 2 | Z77: 0 | AA77: 0 | AB77: 0
E78: 7 | F78: 펌프 외병 | G78: 389 | H78: 10 | I78: 113 | J78: 60 | K78: 59 | L78: 0 | M78: 22 | N78: 99 | O78: 10 | P78: 13 | Q78: 3 | R78: 0 | S78: 0 | T78: 0 | U78: 0 | V78: 0 | W78: 0 | X78: 0 | Y78: 0 | Z78: 0 | AA78: 0 | AB78: 0
E79: 19 | F79: 알파메스틱 상캡 | G79: 133 | H79: 20 | I79: 0 | J79: 0 | K79: 0 | L79: 0 | M79: 0 | N79: 39 | O79: 71 | P79: 3 | Q79: 0 | R79: 34 | S79: 12 | T79: 0 | U79: 0 | V79: 0 | W79: 0 | X79: 0 | Y79: 8 | Z79: 8 | AA79: 6 | AB79: 0
E80: 20 | F80: 알파메스틱 중캡 | G80: 422 | H80: 289 | I80: 0 | J80: 0 | K80: 5 | L80: 0 | M80: 18 | N80: 59 | O80: 18 | P80: 32 | Q80: 1 | R80: 689 | S80: 434 | T80: 15 | U80: 0 | V80: 9 | W80: 0 | X80: 17 | Y80: 189 | Z80: 25 | AA80: 0 | AB80: 0
E81: 24 | F81: 미떼 용기 | G81: 129 | H81: 23 | I81: 0 | J81: 2 | K81: 15 | L81: 0 | M81: 0 | N81: 6 | O81: 28 | P81: 15 | Q81: 40 | R81: 0 | S81: 0 | T81: 0 | U81: 0 | V81: 0 | W81: 0 | X81: 0 | Y81: 0 | Z81: 0 | AA81: 0 | AB81: 0
E82: 25 | F82: 미떼 캡 | G82: 185 | H82: 0 | I82: 0 | J82: 0 | K82: 102 | L82: 27 | M82: 13 | N82: 0 | O82: 0 | P82: 0 | Q82: 43 | R82: 0 | S82: 0 | T82: 0 | U82: 0 | V82: 0 | W82: 0 | X82: 0 | Y82: 0 | Z82: 0 | AA82: 0 | AB82: 0
E83: 28 | F83: 닥터유 민트용기 하 | G83: 0 | H83: 0 | I83: 0 | J83: 0 | K83: 0 | L83: 0 | M83: 0 | N83: 0 | O83: 0 | P83: 0 | Q83: 0 | R83: 111 | S83: 0 | T83: 0 | U83: 0 | V83: 15 | W83: 0 | X83: 0 | Y83: 30 | Z83: 66 | AA83: 0 | AB83: 0
E86: 1 | F86: 알파메스틱 용기 | G86: =SUM(H86:Q86) -> 1 | H86: =IFERROR(H75/$G75,0%) -> 0.5103578154 | I86: =IFERROR(I75/$G75,0%) -> 0 | J86: 0 | K86: 0 | L86: 0 | M86: 0 | N86: 0.2372881356 | O86: 0.0395480226 | P86: 0.04519774011 | Q86: 0.1676082863 | R86: =SUM(S86:AB86) -> 1.002176279 | S86: =IFERROR(S75/$R75,0%) -> 0.7268770403 | T86: =IFERROR(T75/$R75,0%) -> 0 | U86: 0 | V86: 0.009793253536 | W86: 0 | X86: 0.002176278564 | Y86: 0.1360174102 | Z86: 0.09684439608 | AA86: 0.01741022851 | AB86: 0.01305767138
E87: 2 | F87: 알파메스틱 원피스 캡 | G87: =SUM(H87:Q87) -> 1 | H87: =IFERROR(H76/$G76,0%) -> 0.8242774566 | I87: 0 | J87: 0 | K87: 0.01849710983 | L87: 0 | M87: 0.002312138728 | N87: 0.1225433526 | O87: 0.001156069364 | P87: 0.03121387283 | Q87: 0 | R87: =SUM(S87:AB87) -> 1 | S87: =IFERROR(S76/$R76,0%) -> 0.7353923205 | T87: 0 | U87: 0 | V87: 0.01252086811 | W87: 0 | X87: 0.001669449082 | Y87: 0.2128547579 | Z87: 0.03088480801 | AA87: 0.005843071786 | AB87: 0.0008347245409
E88: 3 | F88: 펌프S 대캡(회색) | G88: 1 | H88: 0.1666666667 | I88: 0.475 | J88: 0 | K88: 0.03055555556 | L88: 0 | M88: 0.2194444444 | N88: 0.04444444444 | O88: 0.03333333333 | P88: 0 | Q88: 0.03055555556 | R88: 1 | S88: 0.9782608696 | T88: 0 | U88: 0 | V88: 0 | W88: 0 | X88: 0.007246376812 | Y88: 0.01449275362 | Z88: 0 | AA88: 0 | AB88: 0
E89: 7 | F89: 펌프 외병 | G89: 1 | H89: 0.02570694087 | I89: 0.2904884319 | J89: 0.1542416452 | K89: 0.1516709512 | L89: 0 | M89: 0.05655526992 | N89: 0.2544987147 | O89: 0.02570694087 | P89: 0.03341902314 | Q89: 0.007712082262 | R89: 0 | S89: 0 | T89: 0 | U89: 0 | V89: 0 | W89: 0 | X89: 0 | Y89: 0 | Z89: 0 | AA89: 0 | AB89: 0
E90: 19 | F90: 알파메스틱 상캡 | G90: 1 | H90: 0.1503759398 | I90: 0 | J90: 0 | K90: 0 | L90: 0 | M90: 0 | N90: 0.2932330827 | O90: 0.5338345865 | P90: 0.02255639098 | Q90: 0 | R90: 1 | S90: 0.3529411765 | T90: 0 | U90: 0 | V90: 0 | W90: 0 | X90: 0 | Y90: 0.2352941176 | Z90: 0.2352941176 | AA90: 0.1764705882 | AB90: 0
E91: 20 | F91: 알파메스틱 중캡 | G91: 1 | H91: 0.6848341232 | I91: 0 | J91: 0 | K91: 0.01184834123 | L91: 0 | M91: 0.04265402844 | N91: 0.1398104265 | O91: 0.04265402844 | P91: 0.07582938389 | Q91: 0.002369668246 | R91: 1 | S91: 0.6298984035 | T91: 0.02177068215 | U91: 0 | V91: 0.01306240929 | W91: 0 | X91: 0.02467343977 | Y91: 0.2743105951 | Z91: 0.03628447025 | AA91: 0 | AB91: 0
E92: 24 | F92: 미떼 용기 | G92: 1 | H92: 0.1782945736 | I92: 0 | J92: 0.01550387597 | K92: 0.1162790698 | L92: 0 | M92: 0 | N92: 0.04651162791 | O92: 0.2170542636 | P92: 0.1162790698 | Q92: 0.3100775194 | R92: 0 | S92: 0 | T92: 0 | U92: 0 | V92: 0 | W92: 0 | X92: 0 | Y92: 0 | Z92: 0 | AA92: 0 | AB92: 0
E93: 25 | F93: 미떼 캡 | G93: 1 | H93: 0 | I93: 0 | J93: 0 | K93: 0.5513513514 | L93: 0.1459459459 | M93: 0.07027027027 | N93: 0 | O93: 0 | P93: 0 | Q93: 0.2324324324 | R93: 0 | S93: 0 | T93: 0 | U93: 0 | V93: 0 | W93: 0 | X93: 0 | Y93: 0 | Z93: 0 | AA93: 0 | AB93: 0
E94: 28 | F94: 닥터유 민트용기 하 | G94: 0 | H94: 0 | I94: 0 | J94: 0 | K94: 0 | L94: 0 | M94: 0 | N94: 0 | O94: 0 | P94: 0 | Q94: 0 | R94: 1 | S94: 0 | T94: 0 | U94: 0 | V94: 0.1351351351 | W94: 0 | X94: 0 | Y94: 0.2702702703 | Z94: 0.5945945946 | AA94: 0 | AB94: 0
E97: 제품번호 | F97: 품명 | H97: 검사수량 | I97: 기능성불량 | O97: 위생불량 | R97: 기타
I98: 흑점 | J98: 버 | K98: 게이트버 | L98: 찍힘외 | M98: 웰더 | N98: 미성형 | O98: 기름 | P98: 이물 | Q98: 오염 | R98: 기타
E99: =IFERROR(VLOOKUP(F99,조건기초!$F$5:$AR$34,39,0),"") ->  | F99: 알파메스틱 용기 | H99: =SUMIFS(G$75:G$83,$F$75:$F$83,$F99) -> 531 | I99: =SUMIFS(H$75:H$83,$F$75:$F$83,$F99) -> 271 | J99: =SUMIFS(I$75:I$83,$F$75:$F$83,$F99) -> 0 | K99: 0 | L99: 0 | M99: 0 | N99: 0 | O99: 126 | P99: 21 | Q99: 24 | R99: =SUMIFS(Q$75:Q$83,$F$75:$F$83,$F99) -> 89
H100: =SUM(I100:R100) -> 1 | I100: =IFERROR(I99/$H99,0%) -> 0.5103578154 | J100: =IFERROR(J99/$H99,0%) -> 0 | K100: 0 | L100: 0 | M100: 0 | N100: 0 | O100: 0.2372881356 | P100: 0.0395480226 | Q100: 0.04519774011 | R100: 0.1676082863
E101: =IFERROR(VLOOKUP(F101,조건기초!$F$5:$AR$34,39,0),"") ->  | F101: 알파메스틱 원피스 캡 | H101: =SUMIFS(G$75:G$83,$F$75:$F$83,$F101) -> 865 | I101: =SUMIFS(H$75:H$83,$F$75:$F$83,$F101) -> 713 | J101: =SUMIFS(I$75:I$83,$F$75:$F$83,$F101) -> 0 | K101: 0 | L101: 16 | M101: 0 | N101: 2 | O101: 106 | P101: 1 | Q101: 27 | R101: =SUMIFS(Q$75:Q$83,$F$75:$F$83,$F101) -> 0
H102: =SUM(I102:R102) -> 1 | I102: =IFERROR(I101/$H101,0%) -> 0.8242774566 | J102: =IFERROR(J101/$H101,0%) -> 0 | K102: =IFERROR(K101/$H101,0%) -> 0 | L102: =IFERROR(L101/$H101,0%) -> 0.01849710983 | M102: =IFERROR(M101/$H101,0%) -> 0 | N102: =IFERROR(N101/$H101,0%) -> 0.002312138728 | O102: =IFERROR(O101/$H101,0%) -> 0.1225433526 | P102: =IFERROR(P101/$H101,0%) -> 0.001156069364 | Q102: =IFERROR(Q101/$H101,0%) -> 0.03121387283 | R102: =IFERROR(R101/$H101,0%) -> 0
E103: =IFERROR(VLOOKUP(F103,조건기초!$F$5:$AR$34,39,0),"") ->  | F103: 펌프S 대캡(회색) | H103: =SUMIFS(G$75:G$83,$F$75:$F$83,$F103) -> 360 | I103: =SUMIFS(H$75:H$83,$F$75:$F$83,$F103) -> 60 | J103: =SUMIFS(I$75:I$83,$F$75:$F$83,$F103) -> 171 | K103: 0 | L103: 11 | M103: 0 | N103: 79 | O103: 16 | P103: 12 | Q103: 0 | R103: =SUMIFS(Q$75:Q$83,$F$75:$F$83,$F103) -> 11
H104: =SUM(I104:R104) -> 1 | I104: =IFERROR(I103/$H103,0%) -> 0.1666666667 | J104: =IFERROR(J103/$H103,0%) -> 0.475 | K104: =IFERROR(K103/$H103,0%) -> 0 | L104: =IFERROR(L103/$H103,0%) -> 0.03055555556 | M104: =IFERROR(M103/$H103,0%) -> 0 | N104: =IFERROR(N103/$H103,0%) -> 0.2194444444 | O104: =IFERROR(O103/$H103,0%) -> 0.04444444444 | P104: =IFERROR(P103/$H103,0%) -> 0.03333333333 | Q104: =IFERROR(Q103/$H103,0%) -> 0 | R104: =IFERROR(R103/$H103,0%) -> 0.03055555556
E105: =IFERROR(VLOOKUP(F105,조건기초!$F$5:$AR$34,39,0),"") ->  | F105: 펌프 외병 | H105: =SUMIFS(G$75:G$83,$F$75:$F$83,$F105) -> 389 | I105: =SUMIFS(H$75:H$83,$F$75:$F$83,$F105) -> 10 | J105: =SUMIFS(I$75:I$83,$F$75:$F$83,$F105) -> 113 | K105: 60 | L105: 59 | M105: 0 | N105: 22 | O105: 99 | P105: 10 | Q105: 13 | R105: =SUMIFS(Q$75:Q$83,$F$75:$F$83,$F105) -> 3
H106: =SUM(I106:R106) -> 1 | I106: =IFERROR(I105/$H105,0%) -> 0.02570694087 | J106: =IFERROR(J105/$H105,0%) -> 0.2904884319 | K106: =IFERROR(K105/$H105,0%) -> 0.1542416452 | L106: =IFERROR(L105/$H105,0%) -> 0.1516709512 | M106: =IFERROR(M105/$H105,0%) -> 0 | N106: =IFERROR(N105/$H105,0%) -> 0.05655526992 | O106: =IFERROR(O105/$H105,0%) -> 0.2544987147 | P106: =IFERROR(P105/$H105,0%) -> 0.02570694087 | Q106: =IFERROR(Q105/$H105,0%) -> 0.03341902314 | R106: =IFERROR(R105/$H105,0%) -> 0.007712082262
E107: =IFERROR(VLOOKUP(F107,조건기초!$F$5:$AR$34,39,0),"") ->  | F107: 알파메스틱 상캡 | H107: =SUMIFS(G$75:G$83,$F$75:$F$83,$F107) -> 133 | I107: =SUMIFS(H$75:H$83,$F$75:$F$83,$F107) -> 20 | J107: =SUMIFS(I$75:I$83,$F$75:$F$83,$F107) -> 0 | K107: 0 | L107: 0 | M107: 0 | N107: 0 | O107: 39 | P107: 71 | Q107: 3 | R107: =SUMIFS(Q$75:Q$83,$F$75:$F$83,$F107) -> 0
H108: =SUM(I108:R108) -> 1 | I108: =IFERROR(I107/$H107,0%) -> 0.1503759398 | J108: =IFERROR(J107/$H107,0%) -> 0 | K108: =IFERROR(K107/$H107,0%) -> 0 | L108: =IFERROR(L107/$H107,0%) -> 0 | M108: =IFERROR(M107/$H107,0%) -> 0 | N108: =IFERROR(N107/$H107,0%) -> 0 | O108: =IFERROR(O107/$H107,0%) -> 0.2932330827 | P108: =IFERROR(P107/$H107,0%) -> 0.5338345865 | Q108: =IFERROR(Q107/$H107,0%) -> 0.02255639098 | R108: =IFERROR(R107/$H107,0%) -> 0
E109: =IFERROR(VLOOKUP(F109,조건기초!$F$5:$AR$34,39,0),"") ->  | F109: 알파메스틱 중캡 | H109: =SUMIFS(G$75:G$83,$F$75:$F$83,$F109) -> 422 | I109: =SUMIFS(H$75:H$83,$F$75:$F$83,$F109) -> 289 | J109: =SUMIFS(I$75:I$83,$F$75:$F$83,$F109) -> 0 | K109: 0 | L109: 5 | M109: 0 | N109: 18 | O109: 59 | P109: 18 | Q109: 32 | R109: =SUMIFS(Q$75:Q$83,$F$75:$F$83,$F109) -> 1
H110: =SUM(I110:R110) -> 1 | I110: =IFERROR(I109/$H109,0%) -> 0.6848341232 | J110: =IFERROR(J109/$H109,0%) -> 0 | K110: =IFERROR(K109/$H109,0%) -> 0 | L110: =IFERROR(L109/$H109,0%) -> 0.01184834123 | M110: =IFERROR(M109/$H109,0%) -> 0 | N110: =IFERROR(N109/$H109,0%) -> 0.04265402844 | O110: =IFERROR(O109/$H109,0%) -> 0.1398104265 | P110: =IFERROR(P109/$H109,0%) -> 0.04265402844 | Q110: =IFERROR(Q109/$H109,0%) -> 0.07582938389 | R110: =IFERROR(R109/$H109,0%) -> 0.002369668246
E111: =IFERROR(VLOOKUP(F111,조건기초!$F$5:$AR$34,39,0),"") ->  | F111: 미떼 용기 | H111: =SUMIFS(G$75:G$83,$F$75:$F$83,$F111) -> 129 | I111: =SUMIFS(H$75:H$83,$F$75:$F$83,$F111) -> 23 | J111: =SUMIFS(I$75:I$83,$F$75:$F$83,$F111) -> 0 | K111: 2 | L111: 15 | M111: 0 | N111: 0 | O111: 6 | P111: 28 | Q111: 15 | R111: =SUMIFS(Q$75:Q$83,$F$75:$F$83,$F111) -> 40
H112: =SUM(I112:R112) -> 1 | I112: =IFERROR(I111/$H111,0%) -> 0.1782945736 | J112: =IFERROR(J111/$H111,0%) -> 0 | K112: =IFERROR(K111/$H111,0%) -> 0.01550387597 | L112: =IFERROR(L111/$H111,0%) -> 0.1162790698 | M112: =IFERROR(M111/$H111,0%) -> 0 | N112: =IFERROR(N111/$H111,0%) -> 0 | O112: =IFERROR(O111/$H111,0%) -> 0.04651162791 | P112: =IFERROR(P111/$H111,0%) -> 0.2170542636 | Q112: =IFERROR(Q111/$H111,0%) -> 0.1162790698 | R112: =IFERROR(R111/$H111,0%) -> 0.3100775194
E113: =IFERROR(VLOOKUP(F113,조건기초!$F$5:$AR$34,39,0),"") ->  | F113: 미떼 캡 | H113: =SUMIFS(G$75:G$83,$F$75:$F$83,$F113) -> 185 | I113: =SUMIFS(H$75:H$83,$F$75:$F$83,$F113) -> 0 | J113: =SUMIFS(I$75:I$83,$F$75:$F$83,$F113) -> 0 | K113: 0 | L113: 102 | M113: 27 | N113: 13 | O113: 0 | P113: 0 | Q113: 0 | R113: =SUMIFS(Q$75:Q$83,$F$75:$F$83,$F113) -> 43
H114: =SUM(I114:R114) -> 1 | I114: =IFERROR(I113/$H113,0%) -> 0 | J114: =IFERROR(J113/$H113,0%) -> 0 | K114: =IFERROR(K113/$H113,0%) -> 0 | L114: =IFERROR(L113/$H113,0%) -> 0.5513513514 | M114: =IFERROR(M113/$H113,0%) -> 0.1459459459 | N114: =IFERROR(N113/$H113,0%) -> 0.07027027027 | O114: =IFERROR(O113/$H113,0%) -> 0 | P114: =IFERROR(P113/$H113,0%) -> 0 | Q114: =IFERROR(Q113/$H113,0%) -> 0 | R114: =IFERROR(R113/$H113,0%) -> 0.2324324324
E115: =IFERROR(VLOOKUP(F115,조건기초!$F$5:$AR$34,39,0),"") ->  | F115: 닥터유 민트용기 하 | H115: =SUMIFS(G$75:G$83,$F$75:$F$83,$F115) -> 0 | I115: =SUMIFS(H$75:H$83,$F$75:$F$83,$F115) -> 0 | J115: =SUMIFS(I$75:I$83,$F$75:$F$83,$F115) -> 0 | K115: 0 | L115: 0 | M115: 0 | N115: 0 | O115: 0 | P115: 0 | Q115: 0 | R115: =SUMIFS(Q$75:Q$83,$F$75:$F$83,$F115) -> 0
H116: =SUM(I116:R116) -> 0 | I116: =IFERROR(I115/$H115,0%) -> 0 | J116: =IFERROR(J115/$H115,0%) -> 0 | K116: =IFERROR(K115/$H115,0%) -> 0 | L116: =IFERROR(L115/$H115,0%) -> 0 | M116: =IFERROR(M115/$H115,0%) -> 0 | N116: =IFERROR(N115/$H115,0%) -> 0 | O116: =IFERROR(O115/$H115,0%) -> 0 | P116: =IFERROR(P115/$H115,0%) -> 0 | Q116: =IFERROR(Q115/$H115,0%) -> 0 | R116: =IFERROR(R115/$H115,0%) -> 0
F117: 합 계 | H117: =SUM(I117:R117) -> 3014 | I117: =SUM(I99,I101,I103,I105,I107,I109,I111,I113,I115,) -> 1386 | J117: =SUM(J99,J101,J103,J105,J107,J109,J111,J113,J115,) -> 284 | K117: 62 | L117: 208 | M117: 27 | N117: 134 | O117: 451 | P117: 161 | Q117: 114 | R117: 187
H118: =IFERROR(SUM(I118:R118),0%) -> 1 | I118: =IFERROR(I117/$H$117,"") -> 0.4598540146 | J118: =IFERROR(J117/$H$117,"") -> 0.09422694094 | K118: 0.02057067021 | L118: 0.06901128069 | M118: 0.00895819509 | N118: 0.04445919044 | O118: 0.1496350365 | P118: 0.05341738553 | Q118: 0.03782349038 | R118: 0.06204379562
E120: 제품번호 | F120: 품명 | H120: 검사수량 | I120: 기능성불량 | O120: 위생불량 | R120: 기타
I121: 흑점 | J121: 버 | K121: 게이트버 | L121: 찍힘외 | M121: 웰더 | N121: 미성형 | O121: 기름 | P121: 이물 | Q121: 오염 | R121: 기타
E122: =IFERROR(VLOOKUP(F122,조건기초!$F$5:$AR$34,39,0),"") ->  | F122: 알파메스틱 용기 | H122: =SUMIFS(R$75:R$83,$F$75:$F$83,$F122) -> 919 | I122: =SUMIFS(S$75:S$83,$F$75:$F$83,$F122) -> 668 | J122: =SUMIFS(T$75:T$83,$F$75:$F$83,$F122) -> 0 | K122: 0 | L122: 9 | M122: 0 | N122: 2 | O122: 125 | P122: 89 | Q122: 16 | R122: 12
H123: =SUM(I123:R123) -> 1.002176279 | I123: =IFERROR(I122/$H122,0%) -> 0.7268770403 | J123: =IFERROR(J122/$H122,0%) -> 0 | K123: =IFERROR(K122/$H122,0%) -> 0 | L123: =IFERROR(L122/$H122,0%) -> 0.009793253536 | M123: =IFERROR(M122/$H122,0%) -> 0 | N123: =IFERROR(N122/$H122,0%) -> 0.002176278564 | O123: =IFERROR(O122/$H122,0%) -> 0.1360174102 | P123: =IFERROR(P122/$H122,0%) -> 0.09684439608 | Q123: =IFERROR(Q122/$H122,0%) -> 0.01741022851 | R123: =IFERROR(R122/$H122,0%) -> 0.01305767138
E124: =IFERROR(VLOOKUP(F124,조건기초!$F$5:$AR$34,39,0),"") ->  | F124: 알파메스틱 원피스 캡 | H124: =SUMIFS(R$75:R$83,$F$75:$F$83,$F124) -> 1198 | I124: =SUMIFS(S$75:S$83,$F$75:$F$83,$F124) -> 881 | J124: =SUMIFS(T$75:T$83,$F$75:$F$83,$F124) -> 0 | K124: =SUMIFS(U$75:U$83,$F$75:$F$83,$F124) -> 0 | L124: =SUMIFS(V$75:V$83,$F$75:$F$83,$F124) -> 15 | M124: =SUMIFS(W$75:W$83,$F$75:$F$83,$F124) -> 0 | N124: =SUMIFS(X$75:X$83,$F$75:$F$83,$F124) -> 2 | O124: =SUMIFS(Y$75:Y$83,$F$75:$F$83,$F124) -> 255 | P124: =SUMIFS(Z$75:Z$83,$F$75:$F$83,$F124) -> 37 | Q124: =SUMIFS(AA$75:AA$83,$F$75:$F$83,$F124) -> 7 | R124: =SUMIFS(AB$75:AB$83,$F$75:$F$83,$F124) -> 1
H125: =SUM(I125:R125) -> 1 | I125: =IFERROR(I124/$H124,0%) -> 0.7353923205 | J125: =IFERROR(J124/$H124,0%) -> 0 | K125: =IFERROR(K124/$H124,0%) -> 0 | L125: =IFERROR(L124/$H124,0%) -> 0.01252086811 | M125: =IFERROR(M124/$H124,0%) -> 0 | N125: =IFERROR(N124/$H124,0%) -> 0.001669449082 | O125: =IFERROR(O124/$H124,0%) -> 0.2128547579 | P125: =IFERROR(P124/$H124,0%) -> 0.03088480801 | Q125: =IFERROR(Q124/$H124,0%) -> 0.005843071786 | R125: =IFERROR(R124/$H124,0%) -> 0.0008347245409
E126: =IFERROR(VLOOKUP(F126,조건기초!$F$5:$AR$34,39,0),"") ->  | F126: 펌프S 대캡(회색) | H126: =SUMIFS(R$75:R$83,$F$75:$F$83,$F126) -> 138 | I126: =SUMIFS(S$75:S$83,$F$75:$F$83,$F126) -> 135 | J126: =SUMIFS(T$75:T$83,$F$75:$F$83,$F126) -> 0 | K126: =SUMIFS(U$75:U$83,$F$75:$F$83,$F126) -> 0 | L126: =SUMIFS(V$75:V$83,$F$75:$F$83,$F126) -> 0 | M126: =SUMIFS(W$75:W$83,$F$75:$F$83,$F126) -> 0 | N126: =SUMIFS(X$75:X$83,$F$75:$F$83,$F126) -> 1 | O126: =SUMIFS(Y$75:Y$83,$F$75:$F$83,$F126) -> 2 | P126: =SUMIFS(Z$75:Z$83,$F$75:$F$83,$F126) -> 0 | Q126: =SUMIFS(AA$75:AA$83,$F$75:$F$83,$F126) -> 0 | R126: =SUMIFS(AB$75:AB$83,$F$75:$F$83,$F126) -> 0
H127: =SUM(I127:R127) -> 1 | I127: =IFERROR(I126/$H126,0%) -> 0.9782608696 | J127: =IFERROR(J126/$H126,0%) -> 0 | K127: =IFERROR(K126/$H126,0%) -> 0 | L127: =IFERROR(L126/$H126,0%) -> 0 | M127: =IFERROR(M126/$H126,0%) -> 0 | N127: =IFERROR(N126/$H126,0%) -> 0.007246376812 | O127: =IFERROR(O126/$H126,0%) -> 0.01449275362 | P127: =IFERROR(P126/$H126,0%) -> 0 | Q127: =IFERROR(Q126/$H126,0%) -> 0 | R127: =IFERROR(R126/$H126,0%) -> 0
E128: =IFERROR(VLOOKUP(F128,조건기초!$F$5:$AR$34,39,0),"") ->  | F128: 펌프 외병 | H128: =SUMIFS(R$75:R$83,$F$75:$F$83,$F128) -> 0 | I128: =SUMIFS(S$75:S$83,$F$75:$F$83,$F128) -> 0 | J128: =SUMIFS(T$75:T$83,$F$75:$F$83,$F128) -> 0 | K128: =SUMIFS(U$75:U$83,$F$75:$F$83,$F128) -> 0 | L128: =SUMIFS(V$75:V$83,$F$75:$F$83,$F128) -> 0 | M128: =SUMIFS(W$75:W$83,$F$75:$F$83,$F128) -> 0 | N128: =SUMIFS(X$75:X$83,$F$75:$F$83,$F128) -> 0 | O128: =SUMIFS(Y$75:Y$83,$F$75:$F$83,$F128) -> 0 | P128: =SUMIFS(Z$75:Z$83,$F$75:$F$83,$F128) -> 0 | Q128: =SUMIFS(AA$75:AA$83,$F$75:$F$83,$F128) -> 0 | R128: =SUMIFS(AB$75:AB$83,$F$75:$F$83,$F128) -> 0
H129: =SUM(I129:R129) -> 0 | I129: =IFERROR(I128/$H128,0%) -> 0 | J129: =IFERROR(J128/$H128,0%) -> 0 | K129: =IFERROR(K128/$H128,0%) -> 0 | L129: =IFERROR(L128/$H128,0%) -> 0 | M129: =IFERROR(M128/$H128,0%) -> 0 | N129: =IFERROR(N128/$H128,0%) -> 0 | O129: =IFERROR(O128/$H128,0%) -> 0 | P129: =IFERROR(P128/$H128,0%) -> 0 | Q129: =IFERROR(Q128/$H128,0%) -> 0 | R129: =IFERROR(R128/$H128,0%) -> 0
E130: =IFERROR(VLOOKUP(F130,조건기초!$F$5:$AR$34,39,0),"") ->  | F130: 알파메스틱 상캡 | H130: =SUMIFS(R$75:R$83,$F$75:$F$83,$F130) -> 34 | I130: =SUMIFS(S$75:S$83,$F$75:$F$83,$F130) -> 12 | J130: =SUMIFS(T$75:T$83,$F$75:$F$83,$F130) -> 0 | K130: =SUMIFS(U$75:U$83,$F$75:$F$83,$F130) -> 0 | L130: =SUMIFS(V$75:V$83,$F$75:$F$83,$F130) -> 0 | M130: =SUMIFS(W$75:W$83,$F$75:$F$83,$F130) -> 0 | N130: =SUMIFS(X$75:X$83,$F$75:$F$83,$F130) -> 0 | O130: =SUMIFS(Y$75:Y$83,$F$75:$F$83,$F130) -> 8 | P130: =SUMIFS(Z$75:Z$83,$F$75:$F$83,$F130) -> 8 | Q130: =SUMIFS(AA$75:AA$83,$F$75:$F$83,$F130) -> 6 | R130: =SUMIFS(AB$75:AB$83,$F$75:$F$83,$F130) -> 0
H131: =SUM(I131:R131) -> 1 | I131: =IFERROR(I130/$H130,0%) -> 0.3529411765 | J131: =IFERROR(J130/$H130,0%) -> 0 | K131: =IFERROR(K130/$H130,0%) -> 0 | L131: =IFERROR(L130/$H130,0%) -> 0 | M131: =IFERROR(M130/$H130,0%) -> 0 | N131: =IFERROR(N130/$H130,0%) -> 0 | O131: =IFERROR(O130/$H130,0%) -> 0.2352941176 | P131: =IFERROR(P130/$H130,0%) -> 0.2352941176 | Q131: =IFERROR(Q130/$H130,0%) -> 0.1764705882 | R131: =IFERROR(R130/$H130,0%) -> 0
E132: =IFERROR(VLOOKUP(F132,조건기초!$F$5:$AR$34,39,0),"") ->  | F132: 알파메스틱 중캡 | H132: =SUMIFS(R$75:R$83,$F$75:$F$83,$F132) -> 689 | I132: =SUMIFS(S$75:S$83,$F$75:$F$83,$F132) -> 434 | J132: =SUMIFS(T$75:T$83,$F$75:$F$83,$F132) -> 15 | K132: =SUMIFS(U$75:U$83,$F$75:$F$83,$F132) -> 0 | L132: =SUMIFS(V$75:V$83,$F$75:$F$83,$F132) -> 9 | M132: =SUMIFS(W$75:W$83,$F$75:$F$83,$F132) -> 0 | N132: =SUMIFS(X$75:X$83,$F$75:$F$83,$F132) -> 17 | O132: =SUMIFS(Y$75:Y$83,$F$75:$F$83,$F132) -> 189 | P132: =SUMIFS(Z$75:Z$83,$F$75:$F$83,$F132) -> 25 | Q132: =SUMIFS(AA$75:AA$83,$F$75:$F$83,$F132) -> 0 | R132: =SUMIFS(AB$75:AB$83,$F$75:$F$83,$F132) -> 0
H133: =SUM(I133:R133) -> 1 | I133: =IFERROR(I132/$H132,0%) -> 0.6298984035 | J133: =IFERROR(J132/$H132,0%) -> 0.02177068215 | K133: =IFERROR(K132/$H132,0%) -> 0 | L133: =IFERROR(L132/$H132,0%) -> 0.01306240929 | M133: =IFERROR(M132/$H132,0%) -> 0 | N133: =IFERROR(N132/$H132,0%) -> 0.02467343977 | O133: =IFERROR(O132/$H132,0%) -> 0.2743105951 | P133: =IFERROR(P132/$H132,0%) -> 0.03628447025 | Q133: =IFERROR(Q132/$H132,0%) -> 0 | R133: =IFERROR(R132/$H132,0%) -> 0
E134: =IFERROR(VLOOKUP(F134,조건기초!$F$5:$AR$34,39,0),"") ->  | F134: 미떼 용기 | H134: =SUMIFS(R$75:R$83,$F$75:$F$83,$F134) -> 0 | I134: =SUMIFS(S$75:S$83,$F$75:$F$83,$F134) -> 0 | J134: =SUMIFS(T$75:T$83,$F$75:$F$83,$F134) -> 0 | K134: =SUMIFS(U$75:U$83,$F$75:$F$83,$F134) -> 0 | L134: =SUMIFS(V$75:V$83,$F$75:$F$83,$F134) -> 0 | M134: =SUMIFS(W$75:W$83,$F$75:$F$83,$F134) -> 0 | N134: =SUMIFS(X$75:X$83,$F$75:$F$83,$F134) -> 0 | O134: =SUMIFS(Y$75:Y$83,$F$75:$F$83,$F134) -> 0 | P134: =SUMIFS(Z$75:Z$83,$F$75:$F$83,$F134) -> 0 | Q134: =SUMIFS(AA$75:AA$83,$F$75:$F$83,$F134) -> 0 | R134: =SUMIFS(AB$75:AB$83,$F$75:$F$83,$F134) -> 0
H135: =SUM(I135:R135) -> 0 | I135: =IFERROR(I134/$H134,0%) -> 0 | J135: =IFERROR(J134/$H134,0%) -> 0 | K135: =IFERROR(K134/$H134,0%) -> 0 | L135: =IFERROR(L134/$H134,0%) -> 0 | M135: =IFERROR(M134/$H134,0%) -> 0 | N135: =IFERROR(N134/$H134,0%) -> 0 | O135: =IFERROR(O134/$H134,0%) -> 0 | P135: =IFERROR(P134/$H134,0%) -> 0 | Q135: =IFERROR(Q134/$H134,0%) -> 0 | R135: =IFERROR(R134/$H134,0%) -> 0
E136: =IFERROR(VLOOKUP(F136,조건기초!$F$5:$AR$34,39,0),"") ->  | F136: 미떼 캡 | H136: =SUMIFS(R$75:R$83,$F$75:$F$83,$F136) -> 0 | I136: =SUMIFS(S$75:S$83,$F$75:$F$83,$F136) -> 0 | J136: =SUMIFS(T$75:T$83,$F$75:$F$83,$F136) -> 0 | K136: =SUMIFS(U$75:U$83,$F$75:$F$83,$F136) -> 0 | L136: =SUMIFS(V$75:V$83,$F$75:$F$83,$F136) -> 0 | M136: =SUMIFS(W$75:W$83,$F$75:$F$83,$F136) -> 0 | N136: =SUMIFS(X$75:X$83,$F$75:$F$83,$F136) -> 0 | O136: =SUMIFS(Y$75:Y$83,$F$75:$F$83,$F136) -> 0 | P136: =SUMIFS(Z$75:Z$83,$F$75:$F$83,$F136) -> 0 | Q136: =SUMIFS(AA$75:AA$83,$F$75:$F$83,$F136) -> 0 | R136: =SUMIFS(AB$75:AB$83,$F$75:$F$83,$F136) -> 0
H137: =SUM(I137:R137) -> 0 | I137: =IFERROR(I136/$H136,0%) -> 0 | J137: =IFERROR(J136/$H136,0%) -> 0 | K137: =IFERROR(K136/$H136,0%) -> 0 | L137: =IFERROR(L136/$H136,0%) -> 0 | M137: =IFERROR(M136/$H136,0%) -> 0 | N137: =IFERROR(N136/$H136,0%) -> 0 | O137: =IFERROR(O136/$H136,0%) -> 0 | P137: =IFERROR(P136/$H136,0%) -> 0 | Q137: =IFERROR(Q136/$H136,0%) -> 0 | R137: =IFERROR(R136/$H136,0%) -> 0
E138: =IFERROR(VLOOKUP(F138,조건기초!$F$5:$AR$34,39,0),"") ->  | F138: 닥터유 민트용기 하 | H138: =SUMIFS(R$75:R$83,$F$75:$F$83,$F138) -> 111 | I138: =SUMIFS(S$75:S$83,$F$75:$F$83,$F138) -> 0 | J138: =SUMIFS(T$75:T$83,$F$75:$F$83,$F138) -> 0 | K138: =SUMIFS(U$75:U$83,$F$75:$F$83,$F138) -> 0 | L138: =SUMIFS(V$75:V$83,$F$75:$F$83,$F138) -> 15 | M138: =SUMIFS(W$75:W$83,$F$75:$F$83,$F138) -> 0 | N138: =SUMIFS(X$75:X$83,$F$75:$F$83,$F138) -> 0 | O138: =SUMIFS(Y$75:Y$83,$F$75:$F$83,$F138) -> 30 | P138: =SUMIFS(Z$75:Z$83,$F$75:$F$83,$F138) -> 66 | Q138: =SUMIFS(AA$75:AA$83,$F$75:$F$83,$F138) -> 0 | R138: =SUMIFS(AB$75:AB$83,$F$75:$F$83,$F138) -> 0
H139: =SUM(I139:R139) -> 1 | I139: =IFERROR(I138/$H138,0%) -> 0 | J139: =IFERROR(J138/$H138,0%) -> 0 | K139: =IFERROR(K138/$H138,0%) -> 0 | L139: =IFERROR(L138/$H138,0%) -> 0.1351351351 | M139: =IFERROR(M138/$H138,0%) -> 0 | N139: =IFERROR(N138/$H138,0%) -> 0 | O139: =IFERROR(O138/$H138,0%) -> 0.2702702703 | P139: =IFERROR(P138/$H138,0%) -> 0.5945945946 | Q139: =IFERROR(Q138/$H138,0%) -> 0 | R139: =IFERROR(R138/$H138,0%) -> 0
F140: 합 계 | H140: =SUM(I140:R140) -> 3091 | I140: =SUM(I122,I124,I126,I128,I130,I132,I134,I136,I138,) -> 2130 | J140: =SUM(J122,J124,J126,J128,J130,J132,J134,J136,J138,) -> 15 | K140: 0 | L140: 48 | M140: 0 | N140: 22 | O140: 609 | P140: 225 | Q140: 29 | R140: 13
H141: =IFERROR(SUM(I141:R141),0%) -> 1.025547445 | I141: =IFERROR(I140/$H$117,"") -> 0.7067020571 | J141: =IFERROR(J140/$H$117,"") -> 0.00497677505 | K141: =IFERROR(K140/$H$117,"") -> 0 | L141: =IFERROR(L140/$H$117,"") -> 0.01592568016 | M141: =IFERROR(M140/$H$117,"") -> 0 | N141: =IFERROR(N140/$H$117,"") -> 0.007299270073 | O141: =IFERROR(O140/$H$117,"") -> 0.202057067 | P141: =IFERROR(P140/$H$117,"") -> 0.07465162575 | Q141: =IFERROR(Q140/$H$117,"") -> 0.009621765096 | R141: =IFERROR(R140/$H$117,"") -> 0.004313205043
E143: 제품번호 | F143: 품명 | H143: 검사수량 | I143: 기능성불량 | O143: 위생불량 | R143: 기타
I144: 흑점 | J144: 버 | K144: 게이트버 | L144: 찍힘외 | M144: 웰더 | N144: 미성형 | O144: 기름 | P144: 이물 | Q144: 오염 | R144: 기타
E145: =IFERROR(VLOOKUP(F145,조건기초!$F$5:$AR$34,39,0),"") ->  | F145: 알파메스틱 용기 | H145: =H99+H122 -> 1450 | I145: =I99+I122 -> 939 | J145: 0 | K145: 0 | L145: 9 | M145: 0 | N145: 2 | O145: 251 | P145: 110 | Q145: 40 | R145: 101
H146: =SUM(I146:R146) -> 1.00137931 | I146: =IFERROR(I145/$H145,0%) -> 0.6475862069 | J146: =IFERROR(J145/$H145,0%) -> 0 | K146: =IFERROR(K145/$H145,0%) -> 0 | L146: =IFERROR(L145/$H145,0%) -> 0.006206896552 | M146: =IFERROR(M145/$H145,0%) -> 0 | N146: =IFERROR(N145/$H145,0%) -> 0.001379310345 | O146: =IFERROR(O145/$H145,0%) -> 0.1731034483 | P146: =IFERROR(P145/$H145,0%) -> 0.07586206897 | Q146: =IFERROR(Q145/$H145,0%) -> 0.0275862069 | R146: =IFERROR(R145/$H145,0%) -> 0.06965517241
E147: =IFERROR(VLOOKUP(F147,조건기초!$F$5:$AR$34,39,0),"") ->  | F147: 알파메스틱 원피스 캡 | H147: =H101+H124 -> 2063 | I147: =I101+I124 -> 1594 | J147: 0 | K147: 0 | L147: 31 | M147: 0 | N147: 4 | O147: 361 | P147: 38 | Q147: 34 | R147: 1
H148: =SUM(I148:R148) -> 1 | I148: =IFERROR(I147/$H147,0%) -> 0.772661173 | J148: =IFERROR(J147/$H147,0%) -> 0 | K148: =IFERROR(K147/$H147,0%) -> 0 | L148: =IFERROR(L147/$H147,0%) -> 0.0150266602 | M148: =IFERROR(M147/$H147,0%) -> 0 | N148: =IFERROR(N147/$H147,0%) -> 0.001938923897 | O148: =IFERROR(O147/$H147,0%) -> 0.1749878817 | P148: =IFERROR(P147/$H147,0%) -> 0.01841977702 | Q148: =IFERROR(Q147/$H147,0%) -> 0.01648085313 | R148: =IFERROR(R147/$H147,0%) -> 0.0004847309743
E149: =IFERROR(VLOOKUP(F149,조건기초!$F$5:$AR$34,39,0),"") ->  | F149: 펌프S 대캡(회색) | H149: =H103+H126 -> 498 | I149: 195 | J149: 171 | K149: 0 | L149: 11 | M149: 0 | N149: 80 | O149: 18 | P149: 12 | Q149: 0 | R149: 11
H150: =SUM(I150:R150) -> 1 | I150: =IFERROR(I149/$H149,0%) -> 0.3915662651 | J150: =IFERROR(J149/$H149,0%) -> 0.343373494 | K150: =IFERROR(K149/$H149,0%) -> 0 | L150: =IFERROR(L149/$H149,0%) -> 0.02208835341 | M150: =IFERROR(M149/$H149,0%) -> 0 | N150: =IFERROR(N149/$H149,0%) -> 0.1606425703 | O150: =IFERROR(O149/$H149,0%) -> 0.03614457831 | P150: =IFERROR(P149/$H149,0%) -> 0.02409638554 | Q150: =IFERROR(Q149/$H149,0%) -> 0 | R150: =IFERROR(R149/$H149,0%) -> 0.02208835341
E151: =IFERROR(VLOOKUP(F151,조건기초!$F$5:$AR$34,39,0),"") ->  | F151: 펌프 외병 | H151: =H105+H128 -> 389 | I151: 10 | J151: 113 | K151: 60 | L151: 59 | M151: 0 | N151: 22 | O151: 99 | P151: 10 | Q151: 13 | R151: 3
H152: =SUM(I152:R152) -> 1 | I152: =IFERROR(I151/$H151,0%) -> 0.02570694087 | J152: =IFERROR(J151/$H151,0%) -> 0.2904884319 | K152: =IFERROR(K151/$H151,0%) -> 0.1542416452 | L152: =IFERROR(L151/$H151,0%) -> 0.1516709512 | M152: =IFERROR(M151/$H151,0%) -> 0 | N152: =IFERROR(N151/$H151,0%) -> 0.05655526992 | O152: =IFERROR(O151/$H151,0%) -> 0.2544987147 | P152: =IFERROR(P151/$H151,0%) -> 0.02570694087 | Q152: =IFERROR(Q151/$H151,0%) -> 0.03341902314 | R152: =IFERROR(R151/$H151,0%) -> 0.007712082262
E153: =IFERROR(VLOOKUP(F153,조건기초!$F$5:$AR$34,39,0),"") ->  | F153: 알파메스틱 상캡 | H153: =H107+H130 -> 167 | I153: 32 | J153: 0 | K153: 0 | L153: 0 | M153: 0 | N153: 0 | O153: 47 | P153: 79 | Q153: 9 | R153: 0
H154: =SUM(I154:R154) -> 1 | I154: =IFERROR(I153/$H153,0%) -> 0.1916167665 | J154: =IFERROR(J153/$H153,0%) -> 0 | K154: =IFERROR(K153/$H153,0%) -> 0 | L154: =IFERROR(L153/$H153,0%) -> 0 | M154: =IFERROR(M153/$H153,0%) -> 0 | N154: =IFERROR(N153/$H153,0%) -> 0 | O154: =IFERROR(O153/$H153,0%) -> 0.2814371257 | P154: =IFERROR(P153/$H153,0%) -> 0.4730538922 | Q154: =IFERROR(Q153/$H153,0%) -> 0.05389221557 | R154: =IFERROR(R153/$H153,0%) -> 0
E155: =IFERROR(VLOOKUP(F155,조건기초!$F$5:$AR$34,39,0),"") ->  | F155: 알파메스틱 중캡 | H155: =H109+H132 -> 1111 | I155: 723 | J155: 15 | K155: 0 | L155: 14 | M155: 0 | N155: 35 | O155: 248 | P155: 43 | Q155: 32 | R155: 1
H156: =SUM(I156:R156) -> 1 | I156: =IFERROR(I155/$H155,0%) -> 0.6507650765 | J156: =IFERROR(J155/$H155,0%) -> 0.01350135014 | K156: =IFERROR(K155/$H155,0%) -> 0 | L156: =IFERROR(L155/$H155,0%) -> 0.01260126013 | M156: =IFERROR(M155/$H155,0%) -> 0 | N156: =IFERROR(N155/$H155,0%) -> 0.03150315032 | O156: =IFERROR(O155/$H155,0%) -> 0.2232223222 | P156: =IFERROR(P155/$H155,0%) -> 0.03870387039 | Q156: =IFERROR(Q155/$H155,0%) -> 0.02880288029 | R156: =IFERROR(R155/$H155,0%) -> 0.000900090009
E157: =IFERROR(VLOOKUP(F157,조건기초!$F$5:$AR$34,39,0),"") ->  | F157: 미떼 용기 | H157: =H111+H134 -> 129 | I157: 23 | J157: 0 | K157: 2 | L157: 15 | M157: 0 | N157: 0 | O157: 6 | P157: 28 | Q157: 15 | R157: 40
H158: =SUM(I158:R158) -> 1 | I158: =IFERROR(I157/$H157,0%) -> 0.1782945736 | J158: =IFERROR(J157/$H157,0%) -> 0 | K158: =IFERROR(K157/$H157,0%) -> 0.01550387597 | L158: =IFERROR(L157/$H157,0%) -> 0.1162790698 | M158: =IFERROR(M157/$H157,0%) -> 0 | N158: =IFERROR(N157/$H157,0%) -> 0 | O158: =IFERROR(O157/$H157,0%) -> 0.04651162791 | P158: =IFERROR(P157/$H157,0%) -> 0.2170542636 | Q158: =IFERROR(Q157/$H157,0%) -> 0.1162790698 | R158: =IFERROR(R157/$H157,0%) -> 0.3100775194
E159: =IFERROR(VLOOKUP(F159,조건기초!$F$5:$AR$34,39,0),"") ->  | F159: 미떼 캡 | H159: =H113+H136 -> 185 | I159: 0 | J159: 0 | K159: 0 | L159: 102 | M159: 27 | N159: 13 | O159: 0 | P159: 0 | Q159: 0 | R159: 43
H160: =SUM(I160:R160) -> 1 | I160: =IFERROR(I159/$H159,0%) -> 0 | J160: =IFERROR(J159/$H159,0%) -> 0 | K160: =IFERROR(K159/$H159,0%) -> 0 | L160: =IFERROR(L159/$H159,0%) -> 0.5513513514 | M160: =IFERROR(M159/$H159,0%) -> 0.1459459459 | N160: =IFERROR(N159/$H159,0%) -> 0.07027027027 | O160: =IFERROR(O159/$H159,0%) -> 0 | P160: =IFERROR(P159/$H159,0%) -> 0 | Q160: =IFERROR(Q159/$H159,0%) -> 0 | R160: =IFERROR(R159/$H159,0%) -> 0.2324324324
E161: =IFERROR(VLOOKUP(F161,조건기초!$F$5:$AR$34,39,0),"") ->  | F161: 닥터유 민트용기 하 | H161: =H115+H138 -> 111 | I161: 0 | J161: 0 | K161: 0 | L161: 15 | M161: 0 | N161: 0 | O161: 30 | P161: 66 | Q161: 0 | R161: 0
H162: =SUM(I162:R162) -> 1 | I162: =IFERROR(I161/$H161,0%) -> 0 | J162: =IFERROR(J161/$H161,0%) -> 0 | K162: =IFERROR(K161/$H161,0%) -> 0 | L162: =IFERROR(L161/$H161,0%) -> 0.1351351351 | M162: =IFERROR(M161/$H161,0%) -> 0 | N162: =IFERROR(N161/$H161,0%) -> 0 | O162: =IFERROR(O161/$H161,0%) -> 0.2702702703 | P162: =IFERROR(P161/$H161,0%) -> 0.5945945946 | Q162: =IFERROR(Q161/$H161,0%) -> 0 | R162: =IFERROR(R161/$H161,0%) -> 0
F163: 합 계 | H163: =SUM(I163:R163) -> 6105 | I163: =SUM(I145,I147,I149,I151,I153,I155,I157,I159,I161,) -> 3516 | J163: =SUM(J145,J147,J149,J151,J153,J155,J157,J159,J161,) -> 299 | K163: 62 | L163: 256 | M163: 27 | N163: 156 | O163: 1060 | P163: 386 | Q163: 143 | R163: 200
H164: =IFERROR(SUM(I164:R164),0%) -> 1 | I164: =IFERROR(I163/$H$163,"") -> 0.5759213759 | J164: =IFERROR(J163/$H$163,"") -> 0.04897624898 | K164: 0.01015561016 | L164: 0.04193284193 | M164: 0.004422604423 | N164: 0.02555282555 | O164: 0.1736281736 | P164: 0.06322686323 | Q164: 0.02342342342 | R164: 0.03276003276
H165: =SUM(I163:N163) -> 4316 | I165: =I163/$H$165 -> 0.8146431881 | J165: =J163/$H$165 -> 0.06927710843 | K165: 0.01436515292 | L165: 0.0593141798 | M165: 0.0062557924 | N165: =N163/$H$165 -> 0.03614457831 | R165: =R164 -> 0.03276003276
N166: =SUM(O163:Q163) -> 1589 | O166: =O163/$N$166 -> 0.6670862177 | P166: =P163/$N$166 -> 0.2429200755 | Q166: =Q163/$N$166 -> 0.08999370673
E167: 3,4주차 합 계 | H167: =H117+H140 -> 6105 | I167: =I117+I140 -> 3516 | J167: 299 | K167: 62 | L167: 256 | M167: 27 | N167: 156 | O167: 1060 | P167: 386 | Q167: 143 | R167: 200
H168: =IFERROR(SUM(I168:R168),0%) -> 1 | I168: =IFERROR(I167/$H$167,"") -> 0.5759213759 | J168: =IFERROR(J167/$H$167,"") -> 0.04897624898 | K168: 0.01015561016 | L168: 0.04193284193 | M168: 0.004422604423 | N168: 0.02555282555 | O168: 0.1736281736 | P168: 0.06322686323 | Q168: 0.02342342342 | R168: 0.03276003276
N170: =SUM(I164:N164) -> 0.706961507 | O170: =SUM(O164:Q164) -> 0.2602784603 | P170: =R164 -> 0.03276003276

Sheet 사진자료12
B2: 일 자 | C2: 최다불량 | H2: 그 외
B3: 2014-12-01 | M3: √ 금일 이슈 사항은 ① 알파투캡 상캡 성형불량(초도)과 ② 민트용기 하 색상변경에 의한 색상 불량(그린->레드)
B15: 2014-12-02
B27: 2014-12-03
B39: 2014-12-04
B51: 2014-12-05
B63: 2014-12-08
B75: 2014-12-09
B87: 2014-12-10
B99: 2014-12-11
B111: 2014-12-12
B123: 2014-12-15
B135: 2014-12-16
B147: 2014-12-17
B159: 2014-12-18
B171: 2014-12-19
B183: 2014-12-22
B195: 2014-12-23
B207: 2014-12-24
B219: 2014-12-25
B231: 2014-12-26

Sheet Sheet2
D1: 미떼캡 | E1: 알파원캡 | F1: 알파중캡 | G1: 알파상캡 | H1: 민트상 | I1: 민트하 | J1: 펌프내병 | K1: 펌프외병 | L1: 대캡(회색 | M1: 미떼용기
B2: 2014-11-27 | C2: 주 | F2: 8144 | H2: =2024*8 -> 16192 | I2: 13800
C3: 야 | F3: 17264 | G3: 12572 | H3: =4647*8 -> 37176 | I3: 31472
B4: 2014-11-28 | C4: 주 | F4: 27092 | G4: 24108 | H4: =6881*8 -> 55048 | I4: 46704
C5: 야 | F5: 8508 | G5: 6076 | H5: =2694*8 -> 21552 | I5: 20600
B6: 2014-12-01 | C6: 주 | F6: 15676 | G6: 8640 | H6: =4434*8 -> 35472 | I6: 32240
C7: 야 | F7: 25960 | G7: 21288 | H7: =7018*8 -> 56144 | I7: 49464
B8: 2014-12-02 | C8: 주 | F8: 8460 | G8: 10232 | H8: 17120 | I8: 14112
C9: 야 | F9: 17804 | G9: 21500 | H9: =4390*8 -> 35120 | I9: 30840
B10: 2014-12-03 | C10: 주 | F10: 8600 | G10: 10380 | H10: =4760*8 -> 38080 | I10: 10736
C11: 야 | F11: 17316 | G11: 10380 | H11: =7319*8 -> 58552 | I11: 20352
B12: 2014-12-04 | C12: 주 | F12: 26192 | G12: 21452 | H12: =9491*8 -> 75928 | I12: 34480
C13: 야 | E13: =501*4 -> 2004 | F13: 30292 | G13: 24724 | H13: =12074*8 -> 96592 | I13: 49184 | J13: =2105464*4 -> 8421856
B14: 2014-12-05 | C14: 주 | E14: =1995*4 -> 7980 | F14: 30292 | G14: 24724 | H14: =14052*8 -> 112416 | I14: 63832 | J14: =2106794*4 -> 8427176
C15: 야 | E15: =4045*4 -> 16180 | F15: 30292 | G15: 24724 | H15: =16461*8 -> 131688 | I15: 80248 | J15: =2108704*4 -> 8434816 | K15: =1937*4 -> 7748
B16: 2014-12-08 | C16: 주 | E16: =5820*4 -> 23280 | F16: 30292 | G16: 24724 | H16: =18540*8 -> 148320 | I16: 94624 | J16: =2108704*4 -> 8434816 | K16: =1937*4 -> 7748
C17: 야 | E17: =8000*4 -> 32000 | F17: 30292 | G17: 24724 | H17: =21100*8 -> 168800 | I17: 112568 | J17: 8434816 | K17: 7748
B18: 2014-12-09 | C18: 주 | E18: =9859*4 -> 39436 | F18: 34828 | G18: 28960 | H18: =21100*8 -> 168800 | I18: 112568 | J18: 8434816 | K18: 7748
C19: 야 | E19: =12040*4 -> 48160 | F19: 41208 | G19: 41208 | H19: =21100*8 -> 168800 | I19: 112568 | J19: 8434816 | K19: 7748 | L19: =18050*4 -> 72200
B20: 2014-12-10 | C20: 주 | E20: =13917*4 -> 55668 | F20: 53724 | G20: 51856 | H20: =22247*8 -> 177976 | I20: 112568 | J20: 8434816 | K20: 7748 | L20: =18992*4 -> 75968
C21: 야 | E21: 64466 | F21: 63872 | G21: 64168 | H21: 199225 | I21: 112568 | J21: 8434816 | K21: 7748 | L21: 9654
B22: 2014-12-11 | C22: 주 | E22: =17945*4 -> 71780 | F22: 72484 | G22: 74596 | H22: =25666*8 -> 205328 | I22: 118280 | J22: 8434816 | K22: 7748 | L22: =3459*4 -> 13836
C23: 야 | E23: 80502 | F23: 82628 | G23: 76792 | H23: 0 | I23: 134814 | J23: 8434816 | K23: 7748 | L23: 0
B24: 2014-12-12 | C24: 주 | E24: =21992*4 -> 87968 | F24: 91380 | G24: 81132 | H24: 0 | I24: 149880 | J24: 8434816 | K24: 7748
C25: 야 | E25: 96896 | F25: 101500 | G25: 91324 | H25: 0 | I25: 167545 | J25: 8434816 | K25: 7748
B26: 2014-12-15 | C26: 주 | D26: =72565*4 -> 290260 | F26: 108492 | G26: 102628 | H26: =2255*8 -> 18040 | I26: 11574
C27: 야 | D27: =74123*4 -> 296492 | F27: 117896 | G27: 114004 | H27: =3011*8 -> 24088 | I27: 26526
B28: 2014-12-16 | C28: 주 | D28: =75482*4 -> 301928 | F28: 125396 | G28: 124260 | H28: =5050*8 -> 40400 | I28: 39324
C29: 야 | D29: =77076*4 -> 308304 | F29: 134624 | G29: =128860+220 -> 129080 | H29: =7666*8 -> 61328 | I29: 54162
B30: 2014-12-17 | C30: 주 | D30: =77916*4 -> 311664 | F30: 142732 | G30: =10920-220 -> 10700 | H30: =2257*8 -> 18056 | I30: 67122
C31: 야 | F31: 153060 | G31: 16316 | H31: =4869*8 -> 38952 | I31: 81954
B32: 2014-12-18 | C32: 주 | F32: 162120 | G32: 26936 | H32: =6096*8 -> 48768 | I32: 94884
C33: 야 | F33: 172400 | G33: 39040 | I33: 10974
B34: 2014-12-19 | C34: 주 | F34: 176628 | G34: 42406 | I34: 12296
C35: 야 | D35: =13057*4 -> 52228 | F35: 176628 | G35: 42406 | M35: =210492*4 -> 841968
B36: 2014-12-22 | C36: 주 | D36: =14073*4 -> 56292 | F36: 185212 | G36: 46484 | M36: =211608*4 -> 846432
C37: 야 | D37: =15715*4 -> 62860 | F37: 195192 | G37: 58244 | M37: =213062*4 -> 852248
B38: 2014-12-23 | C38: 주
C39: 야
B59: 2014-11-27 | C59: 주 | E59: =E2 -> 0 | F59: 8144 | G59: 0 | H59: 16192 | I59: 13800 | J59: 0 | K59: 0 | L59: =L2 -> 0 | M59: 0
C60: 야 | E60: =E3-E2 -> 0 | F60: 9120 | G60: 12572 | H60: 20984 | I60: 17672 | J60: 0 | K60: 0 | L60: =L3-L2 -> 0 | M60: 0
B61: 2014-11-28 | C61: 주 | E61: 0 | F61: 9828 | G61: 11536 | H61: 17872 | I61: 15232 | J61: 0 | K61: 0 | L61: =L4-L3 -> 0 | M61: 0
C62: 야 | E62: 0 | F62: -18584 | G62: -18032 | H62: -33496 | I62: -26104 | J62: 0 | K62: 0 | L62: =L5-L4 -> 0 | M62: 0
B63: 2014-12-01 | C63: 주 | E63: 0 | F63: 7168 | G63: 2564 | H63: 13920 | I63: 11640 | J63: 0 | K63: 0 | L63: =L6-L5 -> 0 | M63: 0
C64: 야 | E64: 0 | F64: 10284 | G64: 12648 | H64: 20672 | I64: 17224 | J64: 0 | K64: 0 | L64: =L7-L6 -> 0 | M64: 0
B65: 2014-12-02 | C65: 주 | E65: =E8-E7 -> 0 | F65: 8460 | G65: 10232 | H65: =2140*8 -> 17120 | I65: 14112
C66: 야 | E66: 0 | F66: =F9-F8 -> 9344 | G66: 11268 | H66: 18000 | I66: 16728 | J66: 0 | K66: 0 | L66: =L9-L8 -> 0 | M66: 0
B67: 2014-12-03 | C67: 주 | E67: 0 | F67: 8600 | G67: 10380 | H67: =H10-H9 -> 2960 | I67: 10736
C68: 야 | E68: 0 | F68: =F11-F10 -> 8716 | G68: 0 | H68: 20472 | I68: =I11-I10 -> 9616 | J68: 0 | K68: 0 | L68: =L11-L10 -> 0 | M68: 0
B69: 2014-12-04 | C69: 주 | E69: 0 | F69: 8876 | G69: 11072 | H69: 17376 | I69: 14128 | J69: 0 | K69: 0 | L69: =L12-L11 -> 0 | M69: 0
C70: 야 | F70: 4100 | G70: 3272 | H70: 20664 | I70: =I13-I12 -> 14704 | K70: =K13-K12 -> 0 | L70: 0 | M70: =M13-M12 -> 0
B71: 2014-12-05 | C71: 주 | E71: =E14-E13 -> 5976 | F71: 0 | G71: 0 | H71: 15824 | I71: 14648 | J71: =J14-J13 -> 5320 | K71: 0 | L71: 0 | M71: =M14-M13 -> 0
C72: 야 | E72: 8200 | F72: 0 | G72: 0 | H72: 19272 | I72: 16416 | J72: =J15-J14 -> 7640 | K72: 7748 | L72: 0 | M72: =M15-M14 -> 0
B73: 2014-12-08 | C73: 주 | E73: 7100 | F73: =F16-F15 -> 0 | H73: 16632 | I73: 14376
C74: 야 | E74: 8720 | F74: 0 | G74: =G17-G16 -> 0 | H74: 20480 | I74: 17944 | J74: =J17-J16 -> 0 | K74: 0 | L74: =L17-L16 -> 0 | M74: 0
B75: 2014-12-09 | C75: 주 | E75: 7436 | F75: 4536 | G75: =G18-G17 -> 4236 | H75: 0 | I75: 0 | J75: 0 | K75: 0 | L75: 0 | M75: 0
C76: 야 | E76: 8724 | F76: 6380 | G76: 12248 | H76: 0 | I76: 0 | J76: 0 | K76: 0 | L76: 72200 | M76: 0
B77: 2014-12-10 | C77: 주 | E77: 7508 | F77: 12516 | G77: 10648 | H77: 9176 | I77: 0 | J77: 0 | K77: 0 | L77: 3768
C78: 야 | E78: 8798 | F78: 10148 | G78: 12312 | H78: 21249 | I78: 0 | J78: 0 | K78: 0 | L78: 9654
B79: 2014-12-11 | C79: 주 | E79: 7314 | F79: 8612 | G79: 10428 | H79: =H22-H21 -> 6103 | I79: =I22-I21 -> 5712 | J79: =J22-J21 -> 0 | K79: 0 | L79: 4182
C80: 야 | E80: 8722 | F80: 10144 | G80: =G23-G22 -> 2196 | H80: =H23-H22 -> -205328 | I80: 16534 | J80: 0 | K80: 0 | L80: 0
B81: 2014-12-12 | C81: 주 | E81: 7466 | F81: 8752 | G81: 4340 | H81: =H24-H23 -> 0 | I81: =I24-I23 -> 15066 | J81: 0 | K81: 0 | L81: 0
C82: 야 | D82: =D25-D24 -> 0 | E82: =E25-E24 -> 8928 | F82: 10120 | G82: 10192 | H82: 0 | I82: =I25-I24 -> 17665 | J82: 0 | K82: 0 | L82: 0 | M82: 0
B83: 2014-12-15 | C83: 주 | E83: =E26-E25 -> -96896 | F83: 6992 | G83: 11304 | H83: 18040 | I83: 11574 | L83: 0 | M83: 0
C84: 야 | D84: =D27-D26 -> 6232 | E84: 0 | F84: 9404 | G84: 11376 | H84: 6048 | I84: =I27-I26 -> 14952 | J84: 0 | K84: 0 | L84: 0 | M84: 0
B85: 2014-12-16 | C85: 주 | D85: 5436 | E85: 0 | F85: 7500 | G85: 10256 | H85: 16312 | I85: =I28-I27 -> 12798 | J85: 0 | K85: 0 | L85: 0 | M85: 0
C86: 야 | D86: =D29-D28 -> 6376 | E86: 0 | F86: 9228 | G86: 4820 | H86: 20928 | I86: =I29-I28 -> 14838 | J86: 0 | K86: 0 | L86: 0 | M86: 0
B87: 2014-12-17 | C87: 주 | D87: =D30-D29 -> 3360 | E87: 0 | F87: 8108 | G87: 10700 | H87: 18056 | I87: =I30-I29 -> 12960 | J87: 0 | K87: 0 | L87: 0 | M87: 0
C88: 야 | D88: =D31-D30 -> -311664 | E88: 0 | F88: 10328 | G88: 5396 | H88: 20896 | I88: 14832 | J88: 0 | K88: 0 | L88: 0 | M88: 0
B89: 2014-12-18 | C89: 주 | D89: 0 | E89: 0 | F89: 9060 | G89: 10620 | H89: 9816 | I89: 12930 | J89: 0 | K89: 0 | L89: 0 | M89: 0
C90: 야 | D90: 0 | E90: 0 | F90: 10280 | G90: 12104 | H90: -48768 | I90: -83910 | J90: 0 | K90: 0 | L90: 0 | M90: 0
B91: 2014-12-19 | C91: 주 | D91: 0 | E91: 0 | F91: 4228 | G91: 3366 | H91: 0 | I91: 1322 | J91: 0 | K91: 0 | L91: 0 | M91: 0
C92: 야 | D92: 52228 | E92: 0 | F92: 0 | G92: 0 | H92: 0 | I92: -12296 | J92: 0 | K92: 0 | L92: 0 | M92: 841968
B93: 2014-12-22 | C93: 주 | D93: 4064 | E93: 0 | F93: 8584 | G93: 4078 | H93: 0 | I93: 0 | J93: 0 | K93: 0 | L93: 0 | M93: 4464
C94: 야 | D94: 6568 | E94: 0 | F94: 9980 | G94: 11760 | H94: 0 | I94: 0 | J94: 0 | K94: 0 | L94: 0 | M94: 5816
B95: 2014-12-23 | C95: 주 | D95: -62860 | E95: 0 | F95: -195192 | G95: -58244 | H95: 0 | I95: 0 | J95: 0 | K95: 0 | L95: 0 | M95: -852248
C96: 야 | D96: 0 | E96: 0 | F96: 0 | G96: 0 | H96: 0 | I96: 0 | J96: 0 | K96: 0 | L96: 0 | M96: 0
D97: 0 | E97: 0 | F97: 0 | G97: 0 | H97: 0 | J97: =J40-J39 -> 0 | K97: 0 | L97: 0 | M97: 0
D98: 0 | E98: 0 | F98: 0 | G98: 0 | H98: 0 | J98: =J41-J40 -> 0 | K98: 0 | L98: 0 | M98: 0
D99: 0 | F99: =F42-F41 -> 0 | G99: 0 | J99: =J42-J41 -> 0 | K99: 0 | L99: 0 | M99: 0
J100: =J43-J42 -> 0 | K100: 0 | L100: 0 | M100: 0
J101: =J44-J43 -> 0 | K101: 0 | L101: 0 | M101: 0
J102: =J45-J44 -> 0 | K102: 0
J103: =J46-J45 -> 0
J104: =J47-J46 -> 0
J105: =J48-J47 -> 0
J106: =J49-J48 -> 0
J107: =J50-J49 -> 0
